Workbook

Sheet Table
A1: Table
A2: Total | B2: Home | C2: Away | D2: Form Home 5 | E2: Form Away 5 | F2: Over Home | G2: Over Away | H2: PT/F HOME | I2: PT/F AWAY | L2: AI DIRE SOCCER
A3: 1. | B3: 1. | C3: 1. | D3: 1. | E3: 1. | F3: 1. | G3: 1. | H3: 1. | I3: 1. | K3: Funzionamento: Aprire diretta.it e copiate le varie classifiche negli appositi spazi, le classifiche da copiare sono: A3 la classifica principale, B3 la classifica delle partite giocate in casa; C3 la classifica delle partite giocate in trasferta, D4 le ultime cinque partite giocate in casa, E4 le ultime cinque partite giocate fuori casa, F4 le partite dell'over2,5 in casa e infine in G4 le partite giocate fuori dell'over2,5. Prima di iniziare una nuova lega bisogna cancellare tutto con l'apposito bottone.
A4: Inter | B4: Inter | C4: Inter | D4: Atalanta | E4: Inter | F4: Frosinone | G4: Milan | H4: Sport Recife | I4: Novorizontino
A5: Inter | B5: Inter | C5: Inter | D5: Atalanta | E5: Inter | F5: Frosinone | G5: Milan | H5: Sport Recife | I5: Novorizontino
A6: 22 | B6: 11 | C6: 11 | D6: 5 | E6: 5 | F6: 12 | G6: 12 | H6: 12 | I6: 12
A7: 18 | B7: 9 | C7: 9 | D7: 5 | E7: 4 | F7: 10 | G7: 10 | H7: 7 | I7: 2
A8: 3 | B8: 1 | C8: 2 | D8: 0 | E8: 1 | F8: 2 | G8: 2 | H8: 0 | I8: 0
A9: 1 | B9: 1 | C9: 0 | D9: 0 | E9: 0 | F9: 22:19:00 | G9: 1.097222222 | H9: 0 | I9: 0
A10: 2.131944444 | B10: 1.0875 | C10: 1.044444444 | D10: 15:02:00 | E10: 12:02:00 | F10: 3.4 | G10: 3.8 | H10: 3 | I10: 4
A11: 41 | B11: 20 | C11: 21 | D11: 13 | E11: 10 | H11: 1 | I11: 1
A12: 57 | B12: 28 | C12: 29 | D12: 15 | E12: 13 | F12: ? | G12: ? | H12: 0 | I12: 2
H13: 0 | I13: 0
A14: ? | B14: ? | C14: ? | D14: ? | E14: ? | F14: + | G14: + | H14: 0 | I14: 0
H15: 1 | I15: 3
A16: V | B16: V | C16: V | D16: V | E16: V | F16: + | G16: + | H16: 31 | I16: 19
H17: 2. | I17: 2.
A18: V | B18: V | C18: V | D18: V | E18: V | F18: + | G18: + | H18: Vitoria | I18: Vila Nova
H19: Vitoria | I19: Vila Nova
A20: V | B20: V | C20: N | D20: V | E20: N | F20: + | G20: + | H20: 10 | I20: 12
H21: 4 | I21: 3
A22: V | B22: V | C22: V | D22: V | E22: V | F22: - | G22: + | H22: 0 | I22: 0
F23: 2. | G23: 2. | H23: 0 | I23: 0
A24: N | B24: V | C24: V | D24: V | E24: V | F24: Salernitana | G24: Sassuolo | H24: 3 | I24: 2
A25: 2. | B25: 2. | C25: 2. | D25: 2. | E25: 2. | F25: Salernitana | G25: Sassuolo | H25: 0 | I25: 2
A26: Juventus | B26: Atalanta | C26: Juventus | D26: Inter | E26: Milan | F26: 12 | G26: 12 | H26: 0 | I26: 1
A27: Juventus | B27: Atalanta | C27: Juventus | D27: Inter | E27: Milan | F27: 9 | G27: 8 | H27: 1 | I27: 0
A28: 23 | B28: 12 | C28: 12 | D28: 5 | E28: 5 | F28: 3 | G28: 4 | H28: 0 | I28: 0
A29: 16 | B29: 9 | C29: 8 | D29: 5 | E29: 3 | F29: 0.5166666667 | G29: 15:26:00 | H29: 2 | I29: 4
A30: 5 | B30: 1 | C30: 2 | D30: 0 | E30: 1 | F30: 3 | G30: 3.4 | H30: 24 | I30: 17
A31: 2 | B31: 2 | C31: 2 | D31: 0 | E31: 1 | H31: 3. | I31: 3.
A32: 1.509722222 | B32: 1.130555556 | C32: 19:09:00 | D32: 11:01:00 | E32: 13:09:00 | F32: ? | G32: ? | H32: Guarani | I32: Vitoria
A33: 22 | B33: 19 | C33: 10 | D33: 10 | E33: 4 | H33: Guarani | I33: Vitoria
A34: 53 | B34: 28 | C34: 26 | D34: 15 | E34: 10 | F34: + | G34: + | H34: 10 | I34: 12
H35: 6 | I35: 3
A36: ? | B36: ? | C36: ? | D36: ? | E36: ? | F36: + | G36: - | H36: 1 | I36: 1
H37: 0 | I37: 0
A38: P | B38: V | C38: P | D38: V | E38: V | F38: + | G38: + | H38: 1 | I38: 2
H39: 1 | I39: 0
A40: N | B40: V | C40: V | D40: V | E40: V | F40: + | G40: - | H40: 0 | I40: 3
H41: 0 | I41: 0
A42: V | B42: V | C42: V | D42: V | E42: V | F42: + | G42: + | H42: 0 | I42: 1
F43: 3. | G43: 3. | H43: 1 | I43: 2
A44: V | B44: V | C44: V | D44: V | E44: N | F44: Napoli | G44: Frosinone | H44: 23 | I44: 17
F45: Napoli | G45: Frosinone | H45: 4. | I45: 4.
A46: V | B46: V | C46: N | D46: V | E46: P | F46: 11 | G46: 11 | H46: Atletico GO | I46: Juventude
A47: 3. | B47: 3. | C47: 3. | D47: 3. | E47: 3. | F47: 8 | G47: 6 | H47: Atletico GO | I47: Juventude
A48: Milan | B48: Juventus | C48: Milan | D48: Milan | E48: Juventus | F48: 3 | G48: 5 | H48: 12 | I48: 11
A49: Milan | B49: Juventus | C49: Milan | D49: Milan | E49: Juventus | F49: 16:15:00 | G49: 09:25:00 | H49: 5 | I49: 3
A50: 23 | B50: 11 | C50: 12 | D50: 5 | E50: 5 | F50: 2.8 | G50: 3.1 | H50: 0 | I50: 0
A51: 15 | B51: 8 | C51: 7 | D51: 4 | E51: 3 | H51: 0 | I51: 1
A52: 4 | B52: 3 | C52: 3 | D52: 1 | E52: 1 | F52: ? | G52: ? | H52: 0 | I52: 1
A53: 4 | B53: 0 | C53: 2 | D53: 0 | E53: 1 | H53: 3 | I53: 2
A54: 1.935416667 | B54: 17:05:00 | C54: 1.097222222 | D54: 12:04:00 | E54: 08:04:00 | F54: + | G54: - | H54: 0 | I54: 0
A55: 19 | B55: 12 | C55: 6 | D55: 8 | E55: 4 | H55: 1 | I55: 1
A56: 49 | B56: 27 | C56: 24 | D56: 13 | E56: 10 | F56: + | G56: + | H56: 2 | I56: 0
H57: 1 | I57: 3
A58: ? | B58: ? | C58: ? | D58: ? | E58: ? | F58: - | G58: + | H58: 23 | I58: 17
H59: 5. | I59: 5.
A60: V | B60: N | C60: V | D60: N | E60: P | F60: + | G60: + | H60: Criciuma | I60: Ceara
H61: Criciuma | I61: Ceara
A62: N | B62: V | C62: V | D62: V | E62: V | F62: + | G62: + | H62: 11 | I62: 11
F63: 4. | G63: 4. | H63: 5 | I63: 4
A64: V | B64: V | C64: V | D64: V | E64: V | F64: Atalanta | G64: Roma | H64: 0 | I64: 0
F65: Atalanta | G65: Roma | H65: 0 | I65: 0
A66: V | B66: V | C66: N | D66: V | E66: V | F66: 12 | G66: 11 | H66: 2 | I66: 0
F67: 7 | G67: 6 | H67: 0 | I67: 4
A68: V | B68: N | C68: P | D68: V | E68: N | F68: 5 | G68: 5 | H68: 2 | I68: 1
A69: 4. | B69: 4. | C69: 4. | D69: 4. | E69: 4. | F69: 1.130555556 | G69: 12:17:00 | H69: 0 | I69: 0
A70: Atalanta | B70: Bologna | C70: Napoli | D70: Bologna | E70: Genoa | F70: 2.9 | G70: 2.6 | H70: 1 | I70: 0
A71: Atalanta | B71: Bologna | C71: Napoli | D71: Bologna | E71: Genoa | H71: 1 | I71: 2
A72: 22 | B72: 11 | C72: 11 | D72: 5 | E72: 5 | F72: ? | G72: ? | H72: 22 | I72: 16
A73: 12 | B73: 8 | C73: 5 | D73: 4 | E73: 2 | H73: 6. | I73: 6.
A74: 3 | B74: 2 | C74: 3 | D74: 1 | E74: 2 | F74: + | G74: + | H74: Mirassol | I74: Criciuma
A75: 7 | B75: 1 | C75: 3 | D75: 0 | E75: 1 | H75: Mirassol | I75: Criciuma
A76: 1.681944444 | B76: 18:07:00 | C76: 16:11:00 | D76: 10:03:00 | E76: 05:04:00 | F76: - | G76: + | H76: 12 | I76: 11
A77: 18 | B77: 11 | C77: 5 | D77: 7 | E77: 1 | H77: 2 | I77: 4
A78: 39 | B78: 26 | C78: 18 | D78: 13 | E78: 8 | F78: + | G78: - | H78: 0 | I78: 2
H79: 0 | I79: 0
A80: ? | B80: ? | C80: ? | D80: ? | E80: ? | F80: - | G80: - | H80: 4 | I80: 0
H81: 4 | I81: 2
A82: V | B82: V | C82: N | D82: V | E82: N | F82: + | G82: + | H82: 1 | I82: 2
F83: 5. | G83: 5. | H83: 0 | I83: 0
A84: V | B84: N | C84: P | D84: N | E84: V | F84: Cagliari | G84: Lazio | H84: 0 | I84: 0
F85: Cagliari | G85: Lazio | H85: 1 | I85: 1
A86: V | B86: V | C86: P | D86: V | E86: N | F86: 11 | G86: 11 | H86: 22 | I86: 16
F87: 7 | G87: 6 | H87: 7. | I87: 7.
A88: N | B88: V | C88: P | D88: V | E88: V | F88: 4 | G88: 5 | H88: Vila Nova | I88: Botafogo SP
F89: 0.5958333333 | G89: 13:16:00 | H89: Vila Nova | I89: Botafogo SP
A90: V | B90: V | C90: V | D90: V | E90: P | F90: 2.9 | G90: 2.6 | H90: 10 | I90: 11
A91: 5. | B91: 5. | C91: 5. | D91: 5. | E91: 5. | H91: 4 | I91: 3
A92: Bologna | B92: Milan | C92: Fiorentina | D92: Torino | E92: Lazio | F92: ? | G92: ? | H92: 0 | I92: 0
A93: Bologna | B93: Milan | C93: Fiorentina | D93: Torino | E93: Lazio | H93: 0 | I93: 0
A94: 22 | B94: 11 | C94: 11 | D94: 5 | E94: 5 | F94: + | G94: + | H94: 2 | I94: 1
A95: 9 | B95: 8 | C95: 4 | D95: 3 | E95: 2 | H95: 3 | I95: 3
A96: 9 | B96: 1 | C96: 2 | D96: 2 | E96: 1 | F96: + | G96: + | H96: 1 | I96: 1
A97: 4 | B97: 2 | C97: 5 | D97: 0 | E97: 2 | H97: 0 | I97: 0
A98: 1.223611111 | B98: 20:07:00 | C98: 14:14:00 | D98: 08:01:00 | E98: 07:07:00 | F98: - | G98: - | H98: 0 | I98: 1
A99: 7 | B99: 13 | C99: 0 | D99: 7 | E99: 0 | H99: 0 | I99: 2
A100: 36 | B100: 25 | C100: 14 | D100: 11 | E100: 7 | F100: + | G100: - | H100: 21 | I100: 16
H101: 8. | I101: 8.
A102: ? | B102: ? | C102: ? | D102: ? | E102: ? | F102: - | G102: + | H102: Novorizontino | I102: Mirassol
F103: 6. | G103: 6. | H103: Novorizontino | I103: Mirassol
A104: V | B104: N | C104: P | D104: N | E104: P | F104: Udinese | G104: Napoli | H104: 10 | I104: 10
F105: Udinese | G105: Napoli | H105: 4 | I105: 1
A106: N | B106: V | C106: P | D106: V | E106: V | F106: 12 | G106: 11 | H106: 1 | I106: 1
F107: 7 | G107: 6 | H107: 0 | I107: 0
A108: P | B108: V | C108: V | D108: N | E108: V | F108: 5 | G108: 5 | H108: 2 | I108: 2
F109: 15:19:00 | G109: 16:11:00 | H109: 1 | I109: 1
A110: N | B110: V | C110: N | D110: V | E110: N | F110: 2.8 | G110: 2.5 | H110: 1 | I110: 2
H111: 0 | I111: 1
A112: P | B112: V | C112: P | D112: V | E112: P | F112: ? | G112: ? | H112: 0 | I112: 0
A113: 6. | B113: 6. | C113: 6. | D113: 6. | E113: 6. | H113: 1 | I113: 2
A114: Roma | B114: Roma | C114: Lazio | D114: Roma | E114: Roma | F114: - | G114: - | H114: 20 | I114: 14
A115: Roma | B115: Roma | C115: Lazio | D115: Roma | E115: Roma | H115: 9. | I115: 9.
A116: 22 | B116: 11 | C116: 11 | D116: 5 | E116: 5 | F116: + | G116: + | H116: Juventude | I116: Guarani
A117: 10 | B117: 7 | C117: 4 | D117: 3 | E117: 2 | H117: Juventude | I117: Guarani
A118: 5 | B118: 3 | C118: 1 | D118: 2 | E118: 0 | F118: + | G118: - | H118: 11 | I118: 12
A119: 7 | B119: 1 | C119: 6 | D119: 0 | E119: 3 | H119: 4 | I119: 1
A120: 1.518055556 | B120: 1.00625 | C120: 13:16:00 | D120: 09:04:00 | E120: 05:08:00 | F120: + | G120: - | H120: 0 | I120: 3
A121: 10 | B121: 15 | C121: -3 | D121: 5 | E121: -3 | H121: 0 | I121: 0
A122: 35 | B122: 24 | C122: 13 | D122: 11 | E122: 6 | F122: + | G122: + | H122: 2 | I122: 2
F123: 7. | G123: 7. | H123: 0 | I123: 2
A124: ? | B124: ? | C124: ? | D124: ? | E124: ? | F124: Roma | G124: Salernitana | H124: 3 | I124: 2
F125: Roma | G125: Salernitana | H125: 0 | I125: 0
A126: V | B126: V | C126: P | D126: V | E126: V | F126: 11 | G126: 11 | H126: 1 | I126: 0
F127: 6 | G127: 6 | H127: 1 | I127: 2
A128: V | B128: N | C128: V | D128: N | E128: P | F128: 5 | G128: 5 | H128: 19 | I128: 14
F129: 1.00625 | G129: 07:20:00 | H129: 10. | I129: 10.
A130: P | B130: V | C130: V | D130: V | E130: P | F130: 3 | G130: 2.5 | H130: CRB | I130: Sport Recife
H131: CRB | I131: Sport Recife
A132: N | B132: N | C132: N | D132: N | E132: P | F132: ? | G132: ? | H132: 11 | I132: 10
H133: 5 | I133: 0
A134: P | B134: V | C134: P | D134: V | E134: V | F134: + | G134: - | H134: 1 | I134: 1
A135: 7. | B135: 7. | C135: 7. | D135: 7. | E135: 7. | H135: 0 | I135: 0
A136: Napoli | B136: Lazio | C136: Monza | D136: Juventus | E136: Atalanta | F136: - | G136: + | H136: 0 | I136: 2
A137: Napoli | B137: Lazio | C137: Monza | D137: Juventus | E137: Atalanta | H137: 3 | I137: 3
A138: 22 | B138: 11 | C138: 12 | D138: 5 | E138: 5 | F138: - | G138: - | H138: 0 | I138: 0
A139: 10 | B139: 6 | C139: 3 | D139: 3 | E139: 1 | H139: 0 | I139: 1
A140: 5 | B140: 3 | C140: 4 | D140: 2 | E140: 2 | F140: - | G140: + | H140: 0 | I140: 0
A141: 7 | B141: 2 | C141: 5 | D141: 0 | E141: 2 | H141: 2 | I141: 3
A142: 1.351388889 | B142: 12:07:00 | C142: 09:17:00 | D142: 07:02:00 | E142: 05:06:00 | F142: + | G142: + | H142: 19 | I142: 13
A143: 6 | B143: 5 | C143: -8 | D143: 5 | E143: -1 | F143: 8. | G143: 8. | H143: 11. | I143: 11.
A144: 35 | B144: 21 | C144: 13 | D144: 11 | E144: 5 | F144: Inter | G144: Cagliari | H144: Ponte Preta | I144: CRB
F145: Inter | G145: Cagliari | H145: Ponte Preta | I145: CRB
A146: ? | B146: ? | C146: ? | D146: ? | E146: ? | F146: 11 | G146: 11 | H146: 12 | I146: 10
F147: 6 | G147: 6 | H147: 1 | I147: 1
A148: V | B148: N | C148: N | D148: N | E148: N | F148: 5 | G148: 5 | H148: 1 | I148: 0
F149: 1.0875 | G149: 07:20:00 | H149: 0 | I149: 0
A150: N | B150: V | C150: P | D150: V | E150: P | F150: 2.9 | G150: 2.5 | H150: 3 | I150: 2
H151: 5 | I151: 0
A152: V | B152: V | C152: V | D152: V | E152: P | F152: ? | G152: ? | H152: 1 | I152: 4
H153: 0 | I153: 0
A154: P | B154: P | C154: N | D154: V | E154: N | F154: - | G154: + | H154: 0 | I154: 0
H155: 1 | I155: 3
A156: N | B156: V | C156: P | D156: N | E156: V | F156: + | G156: - | H156: 18 | I156: 9
A157: 8. | B157: 8. | C157: 8. | D157: 8. | E157: 8. | H157: 12. | I157: 12.
A158: Fiorentina | B158: Fiorentina | C158: Torino | D158: Fiorentina | E158: Torino | F158: - | G158: - | H158: Ceara | I158: Avai
A159: Fiorentina | B159: Fiorentina | C159: Torino | D159: Fiorentina | E159: Torino | H159: Ceara | I159: Avai
A160: 22 | B160: 11 | C160: 11 | D160: 5 | E160: 5 | F160: + | G160: + | H160: 11 | I160: 10
A161: 10 | B161: 6 | C161: 3 | D161: 3 | E161: 1 | H161: 4 | I161: 2
A162: 4 | B162: 2 | C162: 3 | D162: 1 | E162: 2 | F162: - | G162: - | H162: 1 | I162: 0
A163: 8 | B163: 3 | C163: 5 | D163: 1 | E163: 2 | F163: 9. | G163: 9. | H163: 0 | I163: 0
A164: 1.309027778 | B164: 17:11:00 | C164: 08:13:00 | D164: 07:03:00 | E164: 02:04:00 | F164: Lecce | G164: Bologna | H164: 1 | I164: 0
A165: 6 | B165: 6 | C165: -5 | D165: 4 | E165: -2 | F165: Lecce | G165: Bologna | H165: 1 | I165: 3
A166: 34 | B166: 20 | C166: 12 | D166: 10 | E166: 5 | F166: 12 | G166: 11 | H166: 2 | I166: 1
F167: 6 | G167: 6 | H167: 0 | I167: 0
A168: ? | B168: ? | C168: ? | D168: ? | E168: ? | F168: 6 | G168: 5 | H168: 0 | I168: 0
F169: 0.6368055556 | G169: 11:15:00 | H169: 2 | I169: 4
A170: P | B170: P | C170: V | D170: P | E170: V | F170: 2.7 | G170: 2.4 | H170: 17 | I170: 9
H171: 13. | I171: 13.
A172: P | B172: N | C172: N | D172: N | E172: N | F172: ? | G172: ? | H172: Botafogo SP | I172: Ituano
H173: Botafogo SP | I173: Ituano
A174: N | B174: V | C174: P | D174: V | E174: P | F174: + | G174: + | H174: 10 | I174: 11
H175: 2 | I175: 0
A176: P | B176: V | C176: N | D176: V | E176: N | F176: + | G176: + | H176: 0 | I176: 0
H177: 0 | I177: 0
A178: V | B178: V | C178: P | D178: V | E178: P | F178: - | G178: + | H178: 3 | I178: 2
A179: 9. | B179: 9. | C179: 9. | D179: 9. | E179: 9. | H179: 1 | I179: 1
A180: Lazio | B180: Torino | C180: Genoa | D180: Lazio | E180: Bologna | F180: + | G180: + | H180: 1 | I180: 2
A181: Lazio | B181: Torino | C181: Genoa | D181: Lazio | E181: Bologna | H181: 0 | I181: 0
A182: 22 | B182: 11 | C182: 12 | D182: 5 | E182: 5 | F182: - | G182: - | H182: 0 | I182: 2
A183: 10 | B183: 5 | C183: 3 | D183: 3 | E183: 1 | F183: 10. | G183: 10. | H183: 3 | I183: 4
A184: 4 | B184: 5 | C184: 3 | D184: 1 | E184: 2 | F184: Fiorentina | G184: Juventus | H184: 16 | I184: 9
A185: 8 | B185: 1 | C185: 6 | D185: 1 | E185: 2 | F185: Fiorentina | G185: Juventus | H185: 14. | I185: 14.
A186: 1.057638889 | B186: 12:06:00 | C186: 10:14:00 | D186: 05:03:00 | E186: 06:09:00 | F186: 11 | G186: 12 | H186: Ituano | I186: Sampaio Correa
A187: 2 | B187: 6 | C187: -4 | D187: 2 | E187: -3 | F187: 6 | G187: 6 | H187: Ituano | I187: Sampaio Correa
A188: 34 | B188: 20 | C188: 12 | D188: 10 | E188: 5 | F188: 5 | G188: 6 | H188: 11 | I188: 11
F189: 17:11:00 | G189: 19:09:00 | H189: 4 | I189: 1
A190: ? | B190: ? | C190: ? | D190: ? | E190: ? | F190: 2.5 | G190: 2.3 | H190: 0 | I190: 1
H191: 0 | I191: 1
A192: P | B192: N | C192: N | D192: N | E192: N | F192: ? | G192: ? | H192: 0 | I192: 1
H193: 3 | I193: 2
A194: N | B194: V | C194: V | D194: V | E194: P | F194: - | G194: - | H194: 2 | I194: 0
H195: 0 | I195: 0
A196: V | B196: N | C196: N | D196: V | E196: P | F196: + | G196: + | H196: 1 | I196: 0
H197: 1 | I197: 5
A198: V | B198: V | C198: V | D198: P | E198: V | F198: - | G198: + | H198: 16 | I198: 9
H199: 15. | I199: 15.
A200: V | B200: V | C200: P | D200: V | E200: N | F200: - | G200: + | H200: Londrina | I200: Ponte Preta
... 217 more rows

Sheet Open
A1: =+Table!A4 -> Inter | B1: =IF(A1=0,"",A1) -> Inter
A2: =+Table!A27 -> Juventus | B2: Juventus | D2: Inter | E2: vs | F2: Atalanta | I2: AI DIRE SOCCER
A3: =+Table!A49 -> Milan | B3: Milan
A4: =+Table!A71 -> Atalanta | B4: Atalanta
A5: =+Table!A93 -> Bologna | B5: Bologna | D5: =+'Elaboration data'!B8 -> 57 | E5: POINT | F5: =+'Elaboration data'!C8 -> 39 | I5: Over 0,5 | K5: Over 1,5 | M5: Over 2,5 | O5: Over 3,5 | S5: PICCHETTO
A6: =+Table!A115 -> Roma | B6: Roma
A7: =+Table!A137 -> Napoli | B7: Napoli | D7: =+'Elaboration data'!B4 -> 18 | E7: W | F7: =+'Elaboration data'!C4 -> 12 | I7: =+'Elaboration data'!AH15 -> 0.9476681952 | K7: =+'Elaboration data'!AH16 -> 0.9005412465 | M7: =+'Elaboration data'!AN46 -> 0.4 | O7: =+'Elaboration data'!AH18 -> 0.3927411537
A8: =+Table!A159 -> Fiorentina | B8: Fiorentina | D8: =+'Elaboration data'!B5 -> 3 | E8: N | F8: =+'Elaboration data'!C5 -> 3 | S8: 1 | U8: X | W8: 2
A9: =+Table!A181 -> Lazio | B9: Lazio | D9: =+'Elaboration data'!B6 -> 1 | E9: P | F9: =+'Elaboration data'!C6 -> 7 | I9: Under 0,5 | K9: Under 1,5 | M9: Under 2,5 | O9: Under 3,5 | S9: =+'Elaboration data'!AK6 -> 0.5542168675 | U9: =+'Elaboration data'!AL6 -> 0.2289156627 | W9: =+'Elaboration data'!AM6 -> 0.2168674699
A10: =+Table!A203 -> Torino | B10: Torino
A11: =+Table!A225 -> Genoa | B11: Genoa | I11: =100%-I7 -> 0.05233180479 | K11: =100%-K7 -> 0.0994587535 | M11: =100%-M7 -> 0.6 | O11: =100%-O7 -> 0.6072588463
A12: =+Table!A247 -> Monza | B12: Monza
A13: =+Table!A269 -> Lecce | B13: Lecce
A14: =+Table!A291 -> Frosinone | B14: Frosinone
A15: =+Table!A313 -> Sassuolo | B15: Sassuolo
A16: =+Table!A335 -> Udinese | B16: Udinese
A17: =+Table!A357 -> Cagliari | B17: Cagliari | D17: =+D2 -> Inter | F17: =+F2 -> Atalanta
A18: =+Table!A379 -> Verona | B18: Verona
A19: =+Table!A401 -> Empoli | B19: Empoli
A20: =+Table!A423 -> Salernitana | B20: Salernitana
A21: =+Table!A455 -> 0 | K21: Official | M21: Alternative | O21: Surprise
A22: =+Table!A467 -> 0
A23: =+Table!A489 -> 0 | I23: =+D2 -> Inter | K23: =+'Elaboration data'!AH9 -> 1.588257576 | M23: =+'Elaboration data'!AH26 -> 1.849206349 | O23: =+('Elaboration data'!AH9/'Elaboration data'!AI9)*RANDBETWEEN(0,2) -> 2.351764431
A24: =+Table!A511 -> 0
I26: =+F2 -> Atalanta | K26: =+'Elaboration data'!AI9 -> 0.6753472222 | M26: =+'Elaboration data'!AI26 -> 1.777777778 | O26: =+('Elaboration data'!AI9/'Elaboration data'!AH9)*RANDBETWEEN(0,2) -> 0.850425312
D31: Andamento Over/Under
D33: =+D2 -> Inter | G33: =+'Elaboration data'!AH52 -> UNDER | I33: =+'Elaboration data'!AH53 -> OVER | K33: =+'Elaboration data'!AH54 -> UNDER | M33: =+'Elaboration data'!AH55 -> OVER | O33: =+'Elaboration data'!AH56 -> UNDER
D35: =+F2 -> Atalanta | G35: =+'Elaboration data'!AI52 -> UNDER | I35: =+'Elaboration data'!AI53 -> UNDER | K35: =+'Elaboration data'!AI54 -> OVER | M35: =+'Elaboration data'!AI55 -> UNDER | O35: =+'Elaboration data'!AI56 -> OVER

Sheet Elaboration data (hidden)
B1: =+Open!D2 -> Inter | C1: =+Open!F2 -> Atalanta | AD1: =+A1 -> 0 | AE1: =+B1 -> Inter | AF1: Atalanta
AD2: =+A2 -> 0 | AE2: =+B2 -> 0 | AF2: =+C2 -> 0
A3: Match | B3: =HLOOKUP(B1,E3:AB10,2,FALSE) -> 22 | C3: =HLOOKUP(C1,E3:AB10,2,FALSE) -> 22 | E3: =+Table!A4 -> Inter | F3: =+Table!A27 -> Juventus | G3: =+Table!A49 -> Milan | H3: =+Table!A71 -> Atalanta | I3: =+Table!A93 -> Bologna | J3: =+Table!A115 -> Roma | K3: =+Table!A137 -> Napoli | L3: =+Table!A159 -> Fiorentina | M3: =+Table!A181 -> Lazio | N3: =+Table!A203 -> Torino | O3: =+Table!A225 -> Genoa | P3: =+Table!A247 -> Monza | Q3: =+Table!A269 -> Lecce | R3: =+Table!A291 -> Frosinone | S3: =+Table!A313 -> Sassuolo | T3: =+Table!A335 -> Udinese | U3: =+Table!A357 -> Cagliari | V3: =+Table!A379 -> Verona | W3: =+Table!A401 -> Empoli | X3: =+Table!A423 -> Salernitana | Y3: =+Table!A445 -> 0 | Z3: =+Table!A467 -> 0 | AA3: =+Table!A489 -> 0 | AB3: =+Table!A511 -> 0 | AD3: Match | AE3: 22 | AF3: 22 | AH3: Over | AI3: Under | AK3: 1 | AL3: 2 | AM3: X
A4: Winner | B4: =HLOOKUP(B1,E3:AB10,3,FALSE) -> 18 | C4: =HLOOKUP(C1,E3:AB10,3,FALSE) -> 12 | E4: =+Table!A6 -> 22 | F4: =+Table!A28 -> 23 | G4: =+Table!A50 -> 23 | H4: =+Table!A72 -> 22 | I4: =+Table!A94 -> 22 | J4: =+Table!A116 -> 22 | K4: =+Table!A138 -> 22 | L4: =+Table!A160 -> 22 | M4: =+Table!A182 -> 22 | N4: =+Table!A204 -> 22 | O4: =+Table!A226 -> 23 | P4: =+Table!A248 -> 23 | Q4: =+Table!A270 -> 23 | R4: =+Table!A292 -> 23 | S4: =+Table!A314 -> 22 | T4: =+Table!A336 -> 23 | U4: =+Table!A358 -> 22 | V4: =+Table!A380 -> 23 | W4: =+Table!A402 -> 23 | X4: =+Table!A424 -> 23 | Y4: =+Table!A446 -> 0 | Z4: =+Table!A468 -> 0 | AA4: =+Table!A490 -> 0 | AB4: =+Table!A512 -> 0 | AD4: Winner | AE4: 18 | AF4: 12 | AK4: =+AE4+AF6+AE13+AF24+AE31+AF41 -> 46 | AL4: =+AF4+AE6+AF22+AE15+AF40+AE33 -> 18 | AM4: =+AE5+AF5+AE13+AF23+AE32+AF41 -> 19
A5: N | B5: =HLOOKUP(B1,E3:AB10,4,FALSE) -> 3 | C5: =HLOOKUP(C1,E3:AB10,4,FALSE) -> 3 | E5: =+Table!A7 -> 18 | F5: =+Table!A29 -> 16 | G5: =+Table!A51 -> 15 | H5: =+Table!A73 -> 12 | I5: =+Table!A95 -> 9 | J5: =+Table!A117 -> 10 | K5: =+Table!A139 -> 10 | L5: =+Table!A161 -> 10 | M5: =+Table!A183 -> 10 | N5: =+Table!A205 -> 8 | O5: =+Table!A227 -> 7 | P5: =+Table!A249 -> 7 | Q5: =+Table!A271 -> 5 | R5: =+Table!A293 -> 6 | S5: =+Table!A315 -> 5 | T5: =+Table!A337 -> 2 | U5: =+Table!A359 -> 4 | V5: =+Table!A381 -> 4 | W5: =+Table!A403 -> 4 | X5: =+Table!A425 -> 2 | Y5: =+Table!A447 -> 0 | Z5: =+Table!A469 -> 0 | AA5: =+Table!A491 -> 0 | AB5: =+Table!A513 -> 0 | AD5: N | AE5: 3 | AF5: 3 | AH5: =+(AE34+AE16)/2 -> 0.7732638889 | AI5: =+(AF25+AF43)/2 -> 0.3819444444 | AK5: 1 | AL5: X | AM5: 2
A6: Lose | B6: =HLOOKUP(B1,E3:AB10,5,FALSE) -> 1 | C6: =HLOOKUP(C1,E3:AB10,5,FALSE) -> 7 | E6: =+Table!A8 -> 3 | F6: =+Table!A30 -> 5 | G6: =+Table!A52 -> 4 | H6: =+Table!A74 -> 3 | I6: =+Table!A96 -> 9 | J6: =+Table!A118 -> 5 | K6: =+Table!A140 -> 5 | L6: =+Table!A162 -> 4 | M6: =+Table!A184 -> 4 | N6: =+Table!A206 -> 8 | O6: =+Table!A228 -> 8 | P6: =+Table!A250 -> 8 | Q6: =+Table!A272 -> 9 | R6: =+Table!A294 -> 5 | S6: =+Table!A316 -> 4 | T6: =+Table!A338 -> 13 | U6: =+Table!A360 -> 6 | V6: =+Table!A382 -> 6 | W6: =+Table!A404 -> 6 | X6: =+Table!A426 -> 7 | Y6: =+Table!A448 -> 0 | Z6: =+Table!A470 -> 0 | AA6: =+Table!A492 -> 0 | AB6: =+Table!A514 -> 0 | AD6: Lose | AE6: 1 | AF6: 7 | AK6: =+AK4/(AK4+AL4+AM4) -> 0.5542168675 | AL6: =+AM4/(AK4+AL4+AM4) -> 0.2289156627 | AM6: =+AL4/(AK4+AL4+AM4) -> 0.2168674699
A7: MediaG | B7: =HLOOKUP(B1,E3:AB10,6,FALSE) -> 2.131944444 | C7: =HLOOKUP(C1,E3:AB10,6,FALSE) -> 1.681944444 | E7: =+Table!A9 -> 1 | F7: =+Table!A31 -> 2 | G7: =+Table!A53 -> 4 | H7: =+Table!A75 -> 7 | I7: =+Table!A97 -> 4 | J7: =+Table!A119 -> 7 | K7: =+Table!A141 -> 7 | L7: =+Table!A163 -> 8 | M7: =+Table!A185 -> 8 | N7: =+Table!A207 -> 6 | O7: =+Table!A229 -> 8 | P7: =+Table!A251 -> 8 | Q7: =+Table!A273 -> 9 | R7: =+Table!A295 -> 12 | S7: =+Table!A317 -> 13 | T7: =+Table!A339 -> 8 | U7: =+Table!A361 -> 12 | V7: =+Table!A383 -> 13 | W7: =+Table!A405 -> 13 | X7: =+Table!A427 -> 14 | Y7: =+Table!A449 -> 0 | Z7: =+Table!A471 -> 0 | AA7: =+Table!A493 -> 0 | AB7: =+Table!A515 -> 0 | AD7: MediaG | AE7: 2.131944444 | AF7: 1.681944444 | AH7: =+AH5/(AH5+AI5) -> 0.6693718064 | AI7: =+AI5/(AH5+AI5) -> 0.3306281936
A8: Point | B8: =HLOOKUP(B1,E3:AB10,8,FALSE) -> 57 | C8: =HLOOKUP(C1,E3:AB10,8,FALSE) -> 39 | E8: =+Table!A10 -> 2.131944444 | F8: =+Table!A32 -> 1.509722222 | G8: =+Table!A54 -> 1.935416667 | H8: =+Table!A76 -> 1.681944444 | I8: =+Table!A98 -> 1.223611111 | J8: =+Table!A120 -> 1.518055556 | K8: =+Table!A142 -> 1.351388889 | L8: =+Table!A164 -> 1.309027778 | M8: =+Table!A186 -> 1.057638889 | N8: =+Table!A208 -> 0.8465277778 | O8: =+Table!A230 -> 1.018055556 | P8: =+Table!A252 -> 0.8944444444 | Q8: =+Table!A274 -> 1.022916667 | R8: =+Table!A296 -> 1.322222222 | S8: =+Table!A318 -> 1.195138889 | T8: =+Table!A340 -> 0.9840277778 | U8: =+Table!A362 -> 0.9013888889 | V8: =+Table!A384 -> 0.8972222222 | W8: =+Table!A406 -> 0.65 | X8: =+Table!A428 -> 0.8222222222 | Y8: =+Table!A450 -> 0 | Z8: =+Table!A472 -> 0 | AA8: =+Table!A494 -> 0 | AB8: =+Table!A516 -> 0 | AD8: Point | AE8: 57 | AF8: 39
A9: Diff.Reti | B9: =HLOOKUP(B1,E3:AB10,7,FALSE) -> 41 | C9: =HLOOKUP(C1,E3:AB10,7,FALSE) -> 18 | E9: =+Table!A11 -> 41 | F9: =+Table!A33 -> 22 | G9: =+Table!A55 -> 19 | H9: =+Table!A77 -> 18 | I9: =+Table!A99 -> 7 | J9: =+Table!A121 -> 10 | K9: =+Table!A143 -> 6 | L9: =+Table!A165 -> 6 | M9: =+Table!A187 -> 2 | N9: =+Table!A209 -> 1 | O9: =+Table!A231 -> -2 | P9: =+Table!A253 -> -7 | Q9: =+Table!A275 -> -9 | R9: =+Table!A297 -> -13 | S9: =+Table!A319 -> -13 | T9: =+Table!A341 -> -14 | U9: =+Table!A363 -> -17 | V9: =+Table!A385 -> -11 | W9: =+Table!A407 -> -21 | X9: =+Table!A429 -> -25 | Y9: =+Table!A451 -> 0 | Z9: =+Table!A473 -> 0 | AA9: =+Table!A495 -> 0 | AB9: =+Table!A517 -> 0 | AD9: Diff.Reti | AE9: 41 | AF9: 18 | AH9: =+(AE16+AE34*(E49/AE48)) -> 1.588257576 | AI9: =+(AF25+AF43*(AF49/AF48)) -> 0.6753472222 | AK9: =+B77 -> V | AL9: =+C86 -> N | AM9: =IF(AK9="V",3,IF(AK9="N",1,0)) -> 3 | AN9: =IF(AL9="V",3,IF(AL9="N",1,0)) -> 1 | AP9: =+AM13 -> 3 | AQ9: =+AN13 -> 3
E10: =+Table!A12 -> 57 | F10: =+Table!A34 -> 53 | G10: =+Table!A56 -> 49 | H10: =+Table!A78 -> 39 | I10: =+Table!A100 -> 36 | J10: =+Table!A122 -> 35 | K10: =+Table!A144 -> 35 | L10: =+Table!A166 -> 34 | M10: =+Table!A188 -> 34 | N10: =+Table!A210 -> 32 | O10: =+Table!A232 -> 29 | P10: =+Table!A254 -> 29 | Q10: =+Table!A276 -> 24 | R10: =+Table!A298 -> 23 | S10: =+Table!A320 -> 19 | T10: =+Table!A342 -> 19 | U10: =+Table!A364 -> 18 | V10: =+Table!A386 -> 18 | W10: =+Table!A408 -> 18 | X10: =+Table!A430 -> 13 | Y10: =+Table!A452 -> 0 | Z10: =+Table!A474 -> 0 | AA10: =+Table!A496 -> 0 | AB10: =+Table!A518 -> 0 | AD10: 0 | AE10: 0 | AF10: 0 | AK10: =+B78 -> V | AL10: =+C87 -> P | AM10: =IF(AK10="V",3,IF(AK10="N",1,0)) -> 3 | AN10: =IF(AL10="V",3,IF(AL10="N",1,0)) -> 0 | AP10: =+AM12+AP9 -> 6 | AQ10: =+AN12+AQ9 -> 4
A11: HOME | AD11: HOME | AE11: 0 | AF11: 0 | AH11: =+AH9/(AH9+AI9) -> 0.7016496772 | AI11: =+AI9/(AH9+AI9) -> 0.2983503228 | AK11: V | AL11: P | AM11: 3 | AN11: 0 | AP11: =+AM11+AP10 -> 9 | AQ11: =+AN11+AQ10 -> 4
A12: Match | B12: =HLOOKUP(B1,E12:AB19,2,FALSE) -> 11 | C12: =HLOOKUP(C1,E12:AB19,2,FALSE) -> 12 | E12: =+Table!B5 -> Inter | F12: =+Table!B27 -> Atalanta | G12: =+Table!B49 -> Juventus | H12: =+Table!B71 -> Bologna | I12: =+Table!B93 -> Milan | J12: =+Table!B115 -> Roma | K12: =+Table!B137 -> Lazio | L12: =+Table!B159 -> Fiorentina | M12: =+Table!B181 -> Torino | N12: =+Table!B203 -> Frosinone | O12: =+Table!B225 -> Lecce | P12: =+Table!B247 -> Genoa | Q12: =+Table!B269 -> Napoli | R12: =+Table!B291 -> Monza | S12: =+Table!B313 -> Cagliari | T12: =+Table!B335 -> Verona | U12: =+Table!B357 -> Sassuolo | V12: =+Table!B379 -> Udinese | W12: =+Table!B401 -> Empoli | X12: =+Table!B423 -> Salernitana | Y12: =+Table!B445 -> 0 | Z12: =+Table!B467 -> 0 | AA12: =+Table!B489 -> 0 | AB12: =+Table!B511 -> 0 | AD12: Match | AE12: 11 | AF12: 12 | AK12: V | AL12: N | AM12: 3 | AN12: 1 | AP12: =+AM10+AP11 -> 12 | AQ12: =+AN10+AQ11 -> 4
A13: Winner | B13: =HLOOKUP(B1,E12:AB19,3,FALSE) -> 9 | C13: =HLOOKUP(C1,E12:AB19,3,FALSE) -> 9 | E13: =+Table!B6 -> 11 | F13: =+Table!B28 -> 12 | G13: =+Table!B50 -> 11 | H13: =+Table!B72 -> 11 | I13: =+Table!B94 -> 11 | J13: =+Table!B116 -> 11 | K13: =+Table!B138 -> 11 | L13: =+Table!B160 -> 11 | M13: =+Table!B182 -> 11 | N13: =+Table!B204 -> 12 | O13: =+Table!B226 -> 12 | P13: =+Table!B248 -> 11 | Q13: =+Table!B270 -> 11 | R13: =+Table!B292 -> 11 | S13: =+Table!B314 -> 11 | T13: =+Table!B336 -> 11 | U13: =+Table!B358 -> 10 | V13: =+Table!B380 -> 12 | W13: =+Table!B402 -> 12 | X13: =+Table!B424 -> 12 | Y13: =+Table!B446 -> 0 | Z13: =+Table!B468 -> 0 | AA13: =+Table!B490 -> 0 | AB13: =+Table!B512 -> 0 | AD13: Winner | AE13: 9 | AF13: 9 | AH13: =+AH9+AI9 -> 2.263604798 | AK13: V | AL13: V | AM13: 3 | AN13: 3 | AP13: =+AM9+AP12 -> 15 | AQ13: =+AN9+AQ12 -> 5
A14: N | B14: =HLOOKUP(B1,E12:AB19,4,FALSE) -> 1 | C14: =HLOOKUP(C1,E12:AB19,4,FALSE) -> 1 | E14: =+Table!B7 -> 9 | F14: =+Table!B29 -> 9 | G14: =+Table!B51 -> 8 | H14: =+Table!B73 -> 8 | I14: =+Table!B95 -> 8 | J14: =+Table!B117 -> 7 | K14: =+Table!B139 -> 6 | L14: =+Table!B161 -> 6 | M14: =+Table!B183 -> 5 | N14: =+Table!B205 -> 6 | O14: =+Table!B227 -> 5 | P14: =+Table!B249 -> 4 | Q14: =+Table!B271 -> 5 | R14: =+Table!B293 -> 4 | S14: =+Table!B315 -> 4 | T14: =+Table!B337 -> 3 | U14: =+Table!B359 -> 3 | V14: =+Table!B381 -> 1 | W14: =+Table!B403 -> 2 | X14: =+Table!B425 -> 1 | Y14: =+Table!B447 -> 0 | Z14: =+Table!B469 -> 0 | AA14: =+Table!B491 -> 0 | AB14: =+Table!B513 -> 0 | AD14: N | AE14: 1 | AF14: 1
A15: Lose | B15: =HLOOKUP(B1,E12:AB19,5,FALSE) -> 1 | C15: =HLOOKUP(C1,E12:AB19,5,FALSE) -> 2 | E15: =+Table!B8 -> 1 | F15: =+Table!B30 -> 1 | G15: =+Table!B52 -> 3 | H15: =+Table!B74 -> 2 | I15: =+Table!B96 -> 1 | J15: =+Table!B118 -> 3 | K15: =+Table!B140 -> 3 | L15: =+Table!B162 -> 2 | M15: =+Table!B184 -> 5 | N15: =+Table!B206 -> 2 | O15: =+Table!B228 -> 4 | P15: =+Table!B250 -> 5 | Q15: =+Table!B272 -> 2 | R15: =+Table!B294 -> 4 | S15: =+Table!B316 -> 3 | T15: =+Table!B338 -> 4 | U15: =+Table!B360 -> 2 | V15: =+Table!B382 -> 7 | W15: =+Table!B404 -> 3 | X15: =+Table!B426 -> 4 | Y15: =+Table!B448 -> 0 | Z15: =+Table!B470 -> 0 | AA15: =+Table!B492 -> 0 | AB15: =+Table!B514 -> 0 | AD15: Lose | AE15: 1 | AF15: 2 | AH15: =+AH13/(AH13+AI15) -> 0.9476681952 | AI15: 0.125
A16: MediaG | B16: =HLOOKUP(B1,E12:AB19,6,FALSE) -> 1.0875 | C16: =HLOOKUP(C1,E12:AB19,6,FALSE) -> 1.130555556 | E16: =+Table!B9 -> 1 | F16: =+Table!B31 -> 2 | G16: =+Table!B53 -> 0 | H16: =+Table!B75 -> 1 | I16: =+Table!B97 -> 2 | J16: =+Table!B119 -> 1 | K16: =+Table!B141 -> 2 | L16: =+Table!B163 -> 3 | M16: =+Table!B185 -> 1 | N16: =+Table!B207 -> 4 | O16: =+Table!B229 -> 3 | P16: =+Table!B251 -> 2 | Q16: =+Table!B273 -> 4 | R16: =+Table!B295 -> 3 | S16: =+Table!B317 -> 4 | T16: =+Table!B339 -> 4 | U16: =+Table!B361 -> 5 | V16: =+Table!B383 -> 4 | W16: =+Table!B405 -> 7 | X16: =+Table!B427 -> 7 | Y16: =+Table!B449 -> 0 | Z16: =+Table!B471 -> 0 | AA16: =+Table!B493 -> 0 | AB16: =+Table!B515 -> 0 | AD16: MediaG | AE16: 1.0875 | AF16: 1.130555556 | AH16: =+AH13/(AH13+AI16) -> 0.9005412465 | AI16: 0.25
A17: Point | B17: =HLOOKUP(B1,E12:AB19,8,FALSE) -> 28 | C17: =HLOOKUP(C1,E12:AB19,8,FALSE) -> 28 | E17: =+Table!B10 -> 1.0875 | F17: =+Table!B32 -> 1.130555556 | G17: =+Table!B54 -> 0.7118055556 | H17: =+Table!B76 -> 0.7548611111 | I17: =+Table!B98 -> 0.8381944444 | J17: =+Table!B120 -> 1.00625 | K17: =+Table!B142 -> 0.5048611111 | L17: =+Table!B164 -> 0.7159722222 | M17: =+Table!B186 -> 0.5041666667 | N17: =+Table!B208 -> 0.9298611111 | O17: =+Table!B230 -> 0.6368055556 | P17: =+Table!B252 -> 0.5916666667 | Q17: =+Table!B274 -> 0.6770833333 | R17: =+Table!B296 -> 0.5076388889 | S17: =+Table!B318 -> 0.5958333333 | T17: =+Table!B340 -> 0.5097222222 | U17: =+Table!B362 -> 0.5520833333 | V17: =+Table!B384 -> 0.6381944444 | W17: =+Table!B406 -> 0.3451388889 | X17: =+Table!B428 -> 0.5166666667 | Y17: =+Table!B450 -> 0 | Z17: =+Table!B472 -> 0 | AA17: =+Table!B494 -> 0 | AB17: =+Table!B516 -> 0 | AD17: Point | AE17: 28 | AF17: 28 | AH17: =+AH13/(AH13+AI17) -> 0.6935903512 | AI17: 1
A18: Diff.Reti | B18: =HLOOKUP(B1,E12:AB19,7,FALSE) -> 20 | C18: =HLOOKUP(C1,E12:AB19,7,FALSE) -> 19 | E18: =+Table!B11 -> 20 | F18: =+Table!B33 -> 19 | G18: =+Table!B55 -> 12 | H18: =+Table!B77 -> 11 | I18: =+Table!B99 -> 13 | J18: =+Table!B121 -> 15 | K18: =+Table!B143 -> 5 | L18: =+Table!B165 -> 6 | M18: =+Table!B187 -> 6 | N18: =+Table!B209 -> 3 | O18: =+Table!B231 -> -2 | P18: =+Table!B253 -> 2 | Q18: =+Table!B275 -> 1 | R18: =+Table!B297 -> 1 | S18: =+Table!B319 -> -4 | T18: =+Table!B341 -> -2 | U18: =+Table!B363 -> -2 | V18: =+Table!B385 -> -4 | W18: =+Table!B407 -> -9 | X18: =+Table!B429 -> -12 | Y18: =+Table!B451 -> 0 | Z18: =+Table!B473 -> 0 | AA18: =+Table!B495 -> 0 | AB18: =+Table!B517 -> 0 | AD18: Diff.Reti | AE18: 20 | AF18: 19 | AH18: =+AH13/(AH13+AI18) -> 0.3927411537 | AI18: 3.5
E19: =+Table!B12 -> 28 | F19: =+Table!B34 -> 28 | G19: =+Table!B56 -> 27 | H19: =+Table!B78 -> 26 | I19: =+Table!B100 -> 25 | J19: =+Table!B122 -> 24 | K19: =+Table!B144 -> 21 | L19: =+Table!B166 -> 20 | M19: =+Table!B188 -> 20 | N19: =+Table!B210 -> 20 | O19: =+Table!B232 -> 19 | P19: =+Table!B254 -> 17 | Q19: =+Table!B276 -> 17 | R19: =+Table!B298 -> 16 | S19: =+Table!B320 -> 15 | T19: =+Table!B342 -> 13 | U19: =+Table!B364 -> 11 | V19: =+Table!B386 -> 10 | W19: =+Table!B408 -> 9 | X19: =+Table!B430 -> 7 | Y19: =+Table!B452 -> 0 | Z19: =+Table!B474 -> 0 | AA19: =+Table!B496 -> 0 | AB19: =+Table!B518 -> 0 | AD19: 0 | AE19: 0 | AF19: 0
A20: Away | AD20: Away | AE20: 0 | AF20: 0 | AH20: =+AE4/AF4 -> 1.5 | AI20: =+AF4/AE4 -> 0.6666666667
A21: Match | B21: =HLOOKUP(B1,E21:AB28,2,FALSE) -> 11 | C21: =HLOOKUP(C1,E21:AB28,2,FALSE) -> 10 | E21: =+Table!C5 -> Inter | F21: =+Table!C27 -> Juventus | G21: =+Table!C49 -> Milan | H21: =+Table!C71 -> Napoli | I21: =+Table!C93 -> Fiorentina | J21: =+Table!C115 -> Lazio | K21: =+Table!C137 -> Monza | L21: =+Table!C159 -> Torino | M21: =+Table!C181 -> Genoa | N21: =+Table!C203 -> Atalanta | O21: =+Table!C225 -> Roma | P21: =+Table!C247 -> Bologna | Q21: =+Table!C269 -> Udinese | R21: =+Table!C291 -> Empoli | S21: =+Table!C313 -> Sassuolo | T21: =+Table!C335 -> Salernitana | U21: =+Table!C357 -> Lecce | V21: =+Table!C379 -> Verona | W21: =+Table!C401 -> Cagliari | X21: =+Table!C423 -> Frosinone | Y21: =+Table!C445 -> 0 | Z21: =+Table!C467 -> 0 | AA21: =+Table!C489 -> 0 | AB21: =+Table!C511 -> 0 | AD21: Match | AE21: 11 | AF21: 10 | AH21: =+AE5/AF5 -> 1 | AI21: =+AF5/AE5 -> 1
A22: Winner | B22: =HLOOKUP(B1,E21:AB28,3,FALSE) -> 9 | C22: =HLOOKUP(C1,E21:AB28,3,FALSE) -> 3 | E22: =+Table!C6 -> 11 | F22: =+Table!C28 -> 12 | G22: =+Table!C50 -> 12 | H22: =+Table!C72 -> 11 | I22: =+Table!C94 -> 11 | J22: =+Table!C116 -> 11 | K22: =+Table!C138 -> 12 | L22: =+Table!C160 -> 11 | M22: =+Table!C182 -> 12 | N22: =+Table!C204 -> 10 | O22: =+Table!C226 -> 11 | P22: =+Table!C248 -> 11 | Q22: =+Table!C270 -> 11 | R22: =+Table!C292 -> 11 | S22: =+Table!C314 -> 12 | T22: =+Table!C336 -> 11 | U22: =+Table!C358 -> 11 | V22: =+Table!C380 -> 12 | W22: =+Table!C402 -> 11 | X22: =+Table!C424 -> 11 | Y22: =+Table!C446 -> 0 | Z22: =+Table!C468 -> 0 | AA22: =+Table!C490 -> 0 | AB22: =+Table!C512 -> 0 | AD22: Winner | AE22: 9 | AF22: 3 | AH22: =+AE6/AF6 -> 0.1428571429 | AI22: =+AF6/AE6 -> 7
A23: N | B23: =HLOOKUP(B1,E21:AB28,4,FALSE) -> 2 | C23: =HLOOKUP(C1,E21:AB28,4,FALSE) -> 2 | E23: =+Table!C7 -> 9 | F23: =+Table!C29 -> 8 | G23: =+Table!C51 -> 7 | H23: =+Table!C73 -> 5 | I23: =+Table!C95 -> 4 | J23: =+Table!C117 -> 4 | K23: =+Table!C139 -> 3 | L23: =+Table!C161 -> 3 | M23: =+Table!C183 -> 3 | N23: =+Table!C205 -> 3 | O23: =+Table!C227 -> 3 | P23: =+Table!C249 -> 1 | Q23: =+Table!C271 -> 1 | R23: =+Table!C293 -> 2 | S23: =+Table!C315 -> 2 | T23: =+Table!C337 -> 1 | U23: =+Table!C359 -> 0 | V23: =+Table!C381 -> 1 | W23: =+Table!C403 -> 0 | X23: =+Table!C425 -> 0 | Y23: =+Table!C447 -> 0 | Z23: =+Table!C469 -> 0 | AA23: =+Table!C491 -> 0 | AB23: =+Table!C513 -> 0 | AD23: N | AE23: 2 | AF23: 2
A24: Lose | B24: =HLOOKUP(B1,E21:AB28,5,FALSE) -> 0 | C24: =HLOOKUP(C1,E21:AB28,5,FALSE) -> 5 | E24: =+Table!C8 -> 2 | F24: =+Table!C30 -> 2 | G24: =+Table!C52 -> 3 | H24: =+Table!C74 -> 3 | I24: =+Table!C96 -> 2 | J24: =+Table!C118 -> 1 | K24: =+Table!C140 -> 4 | L24: =+Table!C162 -> 3 | M24: =+Table!C184 -> 3 | N24: =+Table!C206 -> 2 | O24: =+Table!C228 -> 2 | P24: =+Table!C250 -> 7 | Q24: =+Table!C272 -> 6 | R24: =+Table!C294 -> 3 | S24: =+Table!C316 -> 2 | T24: =+Table!C338 -> 3 | U24: =+Table!C360 -> 5 | V24: =+Table!C382 -> 2 | W24: =+Table!C404 -> 3 | X24: =+Table!C426 -> 3 | Y24: =+Table!C448 -> 0 | Z24: =+Table!C470 -> 0 | AA24: =+Table!C492 -> 0 | AB24: =+Table!C514 -> 0 | AD24: Lose | AE24: 0 | AF24: 5 | AH24: =+AH20*3+AH21+AH22/3 -> 5.547619048 | AI24: =+AI20*3+AI21+AI22/3 -> 5.333333333
A25: MediaG | B25: =HLOOKUP(B1,E21:AB28,6,FALSE) -> 1.044444444 | C25: =HLOOKUP(C1,E21:AB28,6,FALSE) -> 0.5513888889 | E25: =+Table!C9 -> 0 | F25: =+Table!C31 -> 2 | G25: =+Table!C53 -> 2 | H25: =+Table!C75 -> 3 | I25: =+Table!C97 -> 5 | J25: =+Table!C119 -> 6 | K25: =+Table!C141 -> 5 | L25: =+Table!C163 -> 5 | M25: =+Table!C185 -> 6 | N25: =+Table!C207 -> 5 | O25: =+Table!C229 -> 6 | P25: =+Table!C251 -> 3 | Q25: =+Table!C273 -> 4 | R25: =+Table!C295 -> 6 | S25: =+Table!C317 -> 8 | T25: =+Table!C339 -> 7 | U25: =+Table!C361 -> 6 | V25: =+Table!C383 -> 9 | W25: =+Table!C405 -> 8 | X25: =+Table!C427 -> 8 | Y25: =+Table!C449 -> 0 | Z25: =+Table!C471 -> 0 | AA25: =+Table!C493 -> 0 | AB25: =+Table!C515 -> 0 | AD25: MediaG | AE25: 1.044444444 | AF25: 0.5513888889
A26: Point | B26: =HLOOKUP(B1,E21:AB28,8,FALSE) -> 29 | C26: =HLOOKUP(C1,E21:AB28,8,FALSE) -> 11 | E26: =+Table!C10 -> 1.044444444 | F26: =+Table!C32 -> 0.7979166667 | G26: =+Table!C54 -> 1.097222222 | H26: =+Table!C76 -> 0.6743055556 | I26: =+Table!C98 -> 0.5930555556 | J26: =+Table!C120 -> 0.5527777778 | K26: =+Table!C142 -> 0.3868055556 | L26: =+Table!C164 -> 0.3423611111 | M26: =+Table!C186 -> 0.4263888889 | N26: =+Table!C208 -> 0.5513888889 | O26: =+Table!C230 -> 0.5118055556 | P26: =+Table!C252 -> 0.46875 | Q26: =+Table!C274 -> 0.3458333333 | R26: =+Table!C296 -> 0.3048611111 | S26: =+Table!C318 -> 0.6430555556 | T26: =+Table!C340 -> 0.3055555556 | U26: =+Table!C362 -> 0.3861111111 | V26: =+Table!C384 -> 0.3875 | W26: =+Table!C406 -> 0.3055555556 | X26: =+Table!C428 -> 0.3923611111 | Y26: =+Table!C450 -> 0 | Z26: =+Table!C472 -> 0 | AA26: =+Table!C494 -> 0 | AB26: =+Table!C516 -> 0 | AD26: Point | AE26: 29 | AF26: 11 | AH26: =+AH24/3 -> 1.849206349 | AI26: =+AI24/3 -> 1.777777778
A27: Diff.Reti | B27: =HLOOKUP(B1,E21:AB28,7,FALSE) -> 21 | C27: =HLOOKUP(C1,E21:AB28,7,FALSE) -> -1 | E27: =+Table!C11 -> 21 | F27: =+Table!C33 -> 10 | G27: =+Table!C55 -> 6 | H27: =+Table!C77 -> 5 | I27: =+Table!C99 -> 0 | J27: =+Table!C121 -> -3 | K27: =+Table!C143 -> -8 | L27: =+Table!C165 -> -5 | M27: =+Table!C187 -> -4 | N27: =+Table!C209 -> -1 | O27: =+Table!C231 -> -5 | P27: =+Table!C253 -> -4 | Q27: =+Table!C275 -> -10 | R27: =+Table!C297 -> -12 | S27: =+Table!C319 -> -11 | T27: =+Table!C341 -> -13 | U27: =+Table!C363 -> -7 | V27: =+Table!C385 -> -9 | W27: =+Table!C407 -> -13 | X27: =+Table!C429 -> -16 | Y27: =+Table!C451 -> 0 | Z27: =+Table!C473 -> 0 | AA27: =+Table!C495 -> 0 | AB27: =+Table!C517 -> 0 | AD27: Diff.Reti | AE27: 21 | AF27: -1
E28: =+Table!C12 -> 29 | F28: =+Table!C34 -> 26 | G28: =+Table!C56 -> 24 | H28: =+Table!C78 -> 18 | I28: =+Table!C100 -> 14 | J28: =+Table!C122 -> 13 | K28: =+Table!C144 -> 13 | L28: =+Table!C166 -> 12 | M28: =+Table!C188 -> 12 | N28: =+Table!C210 -> 11 | O28: =+Table!C232 -> 11 | P28: =+Table!C254 -> 10 | Q28: =+Table!C276 -> 9 | R28: =+Table!C298 -> 9 | S28: =+Table!C320 -> 8 | T28: =+Table!C342 -> 6 | U28: =+Table!C364 -> 5 | V28: =+Table!C386 -> 5 | W28: =+Table!C408 -> 3 | X28: =+Table!C430 -> 3 | Y28: =+Table!C452 -> 0 | Z28: =+Table!C474 -> 0 | AA28: =+Table!C496 -> 0 | AB28: =+Table!C518 -> 0 | AD28: 0 | AE28: 0 | AF28: 0
A29: Form Home 5 | AD29: Form Home 5 | AE29: 0 | AF29: 0
A30: Match | B30: =HLOOKUP(B1,E30:AB37,2,FALSE) -> 5 | C30: =HLOOKUP(C1,E30:AB37,2,FALSE) -> 5 | E30: =+Table!D5 -> Atalanta | F30: =+Table!D27 -> Inter | G30: =+Table!D49 -> Milan | H30: =+Table!D71 -> Bologna | I30: =+Table!D93 -> Torino | J30: =+Table!D115 -> Roma | K30: =+Table!D137 -> Juventus | L30: =+Table!D159 -> Fiorentina | M30: =+Table!D181 -> Lazio | N30: =+Table!D203 -> Napoli | O30: =+Table!D225 -> Verona | P30: =+Table!D247 -> Cagliari | Q30: =+Table!D269 -> Lecce | R30: =+Table!D291 -> Genoa | S30: =+Table!D313 -> Monza | T30: =+Table!D335 -> Udinese | U30: =+Table!D357 -> Sassuolo | V30: =+Table!D379 -> Empoli | W30: =+Table!D401 -> Frosinone | X30: =+Table!D423 -> Salernitana | Y30: =+Table!D445 -> 0 | Z30: =+Table!D467 -> 0 | AA30: =+Table!D489 -> 0 | AB30: =+Table!D511 -> 0 | AD30: Match | AE30: 5 | AF30: 5
A31: Winner | B31: =HLOOKUP(B1,E30:AB37,3,FALSE) -> 5 | C31: =HLOOKUP(C1,E30:AB37,3,FALSE) -> 5 | E31: =+Table!D6 -> 5 | F31: =+Table!D28 -> 5 | G31: =+Table!D50 -> 5 | H31: =+Table!D72 -> 5 | I31: =+Table!D94 -> 5 | J31: =+Table!D116 -> 5 | K31: =+Table!D138 -> 5 | L31: =+Table!D160 -> 5 | M31: =+Table!D182 -> 5 | N31: =+Table!D204 -> 5 | O31: =+Table!D226 -> 5 | P31: =+Table!D248 -> 5 | Q31: =+Table!D270 -> 5 | R31: =+Table!D292 -> 5 | S31: =+Table!D314 -> 5 | T31: =+Table!D336 -> 5 | U31: =+Table!D358 -> 5 | V31: =+Table!D380 -> 5 | W31: =+Table!D402 -> 5 | X31: =+Table!D424 -> 5 | Y31: =+Table!D446 -> 0 | Z31: =+Table!D468 -> 0 | AA31: =+Table!D490 -> 0 | AB31: =+Table!D512 -> 0 | AD31: Winner | AE31: 5 | AF31: 5
A32: N | B32: =HLOOKUP(B1,E30:AB37,4,FALSE) -> 0 | C32: =HLOOKUP(C1,E30:AB37,4,FALSE) -> 0 | E32: =+Table!D7 -> 5 | F32: =+Table!D29 -> 5 | G32: =+Table!D51 -> 4 | H32: =+Table!D73 -> 4 | I32: =+Table!D95 -> 3 | J32: =+Table!D117 -> 3 | K32: =+Table!D139 -> 3 | L32: =+Table!D161 -> 3 | M32: =+Table!D183 -> 3 | N32: =+Table!D205 -> 3 | O32: =+Table!D227 -> 2 | P32: =+Table!D249 -> 2 | Q32: =+Table!D271 -> 2 | R32: =+Table!D293 -> 1 | S32: =+Table!D315 -> 2 | T32: =+Table!D337 -> 1 | U32: =+Table!D359 -> 1 | V32: =+Table!D381 -> 1 | W32: =+Table!D403 -> 1 | X32: =+Table!D425 -> 0 | Y32: =+Table!D447 -> 0 | Z32: =+Table!D469 -> 0 | AA32: =+Table!D491 -> 0 | AB32: =+Table!D513 -> 0 | AD32: N | AE32: 0 | AF32: 0
A33: Lose | B33: =HLOOKUP(B1,E30:AB37,5,FALSE) -> 0 | C33: =HLOOKUP(C1,E30:AB37,5,FALSE) -> 0 | E33: =+Table!D8 -> 0 | F33: =+Table!D30 -> 0 | G33: =+Table!D52 -> 1 | H33: =+Table!D74 -> 1 | I33: =+Table!D96 -> 2 | J33: =+Table!D118 -> 2 | K33: =+Table!D140 -> 2 | L33: =+Table!D162 -> 1 | M33: =+Table!D184 -> 1 | N33: =+Table!D206 -> 1 | O33: =+Table!D228 -> 2 | P33: =+Table!D250 -> 2 | Q33: =+Table!D272 -> 2 | R33: =+Table!D294 -> 4 | S33: =+Table!D316 -> 0 | T33: =+Table!D338 -> 2 | U33: =+Table!D360 -> 2 | V33: =+Table!D382 -> 2 | W33: =+Table!D404 -> 1 | X33: =+Table!D426 -> 1 | Y33: =+Table!D448 -> 0 | Z33: =+Table!D470 -> 0 | AA33: =+Table!D492 -> 0 | AB33: =+Table!D514 -> 0 | AD33: Lose | AE33: 0 | AF33: 0
A34: MediaG | B34: =HLOOKUP(B1,E30:AB37,6,FALSE) -> 0.4590277778 | C34: =HLOOKUP(C1,E30:AB37,6,FALSE) -> 0.6263888889 | E34: =+Table!D9 -> 0 | F34: =+Table!D31 -> 0 | G34: =+Table!D53 -> 0 | H34: =+Table!D75 -> 0 | I34: =+Table!D97 -> 0 | J34: =+Table!D119 -> 0 | K34: =+Table!D141 -> 0 | L34: =+Table!D163 -> 1 | M34: =+Table!D185 -> 1 | N34: =+Table!D207 -> 1 | O34: =+Table!D229 -> 1 | P34: =+Table!D251 -> 1 | Q34: =+Table!D273 -> 1 | R34: =+Table!D295 -> 0 | S34: =+Table!D317 -> 3 | T34: =+Table!D339 -> 2 | U34: =+Table!D361 -> 2 | V34: =+Table!D383 -> 2 | W34: =+Table!D405 -> 3 | X34: =+Table!D427 -> 4 | Y34: =+Table!D449 -> 0 | Z34: =+Table!D471 -> 0 | AA34: =+Table!D493 -> 0 | AB34: =+Table!D515 -> 0 | AD34: MediaG | AE34: 0.4590277778 | AF34: 0.6263888889
A35: Point | B35: =HLOOKUP(B1,E30:AB37,8,FALSE) -> 15 | C35: =HLOOKUP(C1,E30:AB37,8,FALSE) -> 15 | E35: =+Table!D10 -> 0.6263888889 | F35: =+Table!D32 -> 0.4590277778 | G35: =+Table!D54 -> 0.5027777778 | H35: =+Table!D76 -> 0.41875 | I35: =+Table!D98 -> 0.3340277778 | J35: =+Table!D120 -> 0.3777777778 | K35: =+Table!D142 -> 0.2930555556 | L35: =+Table!D164 -> 0.29375 | M35: =+Table!D186 -> 0.2104166667 | N35: =+Table!D208 -> 0.2541666667 | O35: =+Table!D230 -> 0.2527777778 | P35: =+Table!D252 -> 0.2534722222 | Q35: =+Table!D274 -> 0.2972222222 | R35: =+Table!D296 -> 0.2111111111 | S35: =+Table!D318 -> 0.1722222222 | T35: =+Table!D340 -> 0.3381944444 | U35: =+Table!D362 -> 0.2548611111 | V35: =+Table!D384 -> 0.1708333333 | W35: =+Table!D406 -> 0.3395833333 | X35: =+Table!D428 -> 0.2569444444 | Y35: =+Table!D450 -> 0 | Z35: =+Table!D472 -> 0 | AA35: =+Table!D494 -> 0 | AB35: =+Table!D516 -> 0 | AD35: Point | AE35: 15 | AF35: 15
A36: Rendimento | B36: =HLOOKUP(B1,E30:AB37,8,FALSE) -> 15 | C36: =HLOOKUP(C1,E30:AB37,8,FALSE) -> 15 | E36: =+Table!D11 -> 13 | F36: =+Table!D33 -> 10 | G36: =+Table!D55 -> 8 | H36: =+Table!D77 -> 7 | I36: =+Table!D99 -> 7 | J36: =+Table!D121 -> 5 | K36: =+Table!D143 -> 5 | L36: =+Table!D165 -> 4 | M36: =+Table!D187 -> 2 | N36: =+Table!D209 -> 0 | O36: =+Table!D231 -> 2 | P36: =+Table!D253 -> 1 | Q36: =+Table!D275 -> -1 | R36: =+Table!D297 -> 1 | S36: =+Table!D319 -> -4 | T36: =+Table!D341 -> 1 | U36: =+Table!D363 -> -1 | V36: =+Table!D385 -> -2 | W36: =+Table!D407 -> -1 | X36: =+Table!D429 -> -4 | Y36: =+Table!D451 -> 0 | Z36: =+Table!D473 -> 0 | AA36: =+Table!D495 -> 0 | AB36: =+Table!D517 -> 0 | AD36: Rendimento | AE36: 15 | AF36: 15
E37: =+Table!D12 -> 15 | F37: =+Table!D34 -> 15 | G37: =+Table!D56 -> 13 | H37: =+Table!D78 -> 13 | I37: =+Table!D100 -> 11 | J37: =+Table!D122 -> 11 | K37: =+Table!D144 -> 11 | L37: =+Table!D166 -> 10 | M37: =+Table!D188 -> 10 | N37: =+Table!D210 -> 10 | O37: =+Table!D232 -> 8 | P37: =+Table!D254 -> 8 | Q37: =+Table!D276 -> 8 | R37: =+Table!D298 -> 7 | S37: =+Table!D320 -> 6 | T37: =+Table!D342 -> 5 | U37: =+Table!D364 -> 5 | V37: =+Table!D386 -> 5 | W37: =+Table!D408 -> 4 | X37: =+Table!D430 -> 1 | Y37: =+Table!D452 -> 0 | Z37: =+Table!D474 -> 0 | AA37: =+Table!D496 -> 0 | AB37: =+Table!D518 -> 0 | AD37: 0 | AE37: 0 | AF37: 0
A38: Form Away 5 | AD38: Form Away 5 | AE38: 0 | AF38: 0
A39: Match | B39: =HLOOKUP(B1,E39:AB46,2,FALSE) -> 5 | C39: =HLOOKUP(C1,E39:AB46,2,FALSE) -> 5 | E39: =+Table!E5 -> Inter | F39: =+Table!E27 -> Milan | G39: =+Table!E49 -> Juventus | H39: =+Table!E71 -> Genoa | I39: =+Table!E93 -> Lazio | J39: =+Table!E115 -> Roma | K39: =+Table!E137 -> Atalanta | L39: =+Table!E159 -> Torino | M39: =+Table!E181 -> Bologna | N39: =+Table!E203 -> Monza | O39: =+Table!E225 -> Fiorentina | P39: =+Table!E247 -> Napoli | Q39: =+Table!E269 -> Salernitana | R39: =+Table!E291 -> Empoli | S39: =+Table!E313 -> Udinese | T39: =+Table!E335 -> Verona | U39: =+Table!E357 -> Lecce | V39: =+Table!E379 -> Cagliari | W39: =+Table!E401 -> Sassuolo | X39: =+Table!E423 -> Frosinone | Y39: =+Table!E445 -> 0 | Z39: =+Table!E467 -> 0 | AA39: =+Table!E489 -> 0 | AB39: =+Table!E511 -> 0 | AD39: Match | AE39: 5 | AF39: 5
A40: Winner | B40: =HLOOKUP(B1,E39:AB46,3,FALSE) -> 4 | C40: =HLOOKUP(C1,E39:AB46,3,FALSE) -> 1 | E40: =+Table!E6 -> 5 | F40: =+Table!E28 -> 5 | G40: =+Table!E50 -> 5 | H40: =+Table!E72 -> 5 | I40: =+Table!E94 -> 5 | J40: =+Table!E116 -> 5 | K40: =+Table!E138 -> 5 | L40: =+Table!E160 -> 5 | M40: =+Table!E182 -> 5 | N40: =+Table!E204 -> 5 | O40: =+Table!E226 -> 5 | P40: =+Table!E248 -> 5 | Q40: =+Table!E270 -> 5 | R40: =+Table!E292 -> 5 | S40: =+Table!E314 -> 5 | T40: =+Table!E336 -> 5 | U40: =+Table!E358 -> 5 | V40: =+Table!E380 -> 5 | W40: =+Table!E402 -> 5 | X40: =+Table!E424 -> 5 | Y40: =+Table!E446 -> 0 | Z40: =+Table!E468 -> 0 | AA40: =+Table!E490 -> 0 | AB40: =+Table!E512 -> 0 | AD40: Winner | AE40: 4 | AF40: 1
A41: N | B41: =HLOOKUP(B1,E39:AB46,4,FALSE) -> 1 | C41: =HLOOKUP(C1,E39:AB46,4,FALSE) -> 2 | E41: =+Table!E7 -> 4 | F41: =+Table!E29 -> 3 | G41: =+Table!E51 -> 3 | H41: =+Table!E73 -> 2 | I41: =+Table!E95 -> 2 | J41: =+Table!E117 -> 2 | K41: =+Table!E139 -> 1 | L41: =+Table!E161 -> 1 | M41: =+Table!E183 -> 1 | N41: =+Table!E205 -> 1 | O41: =+Table!E227 -> 1 | P41: =+Table!E249 -> 1 | Q41: =+Table!E271 -> 1 | R41: =+Table!E293 -> 0 | S41: =+Table!E315 -> 0 | T41: =+Table!E337 -> 0 | U41: =+Table!E359 -> 0 | V41: =+Table!E381 -> 0 | W41: =+Table!E403 -> 0 | X41: =+Table!E425 -> 0 | Y41: =+Table!E447 -> 0 | Z41: =+Table!E469 -> 0 | AA41: =+Table!E491 -> 0 | AB41: =+Table!E513 -> 0 | AD41: N | AE41: 1 | AF41: 2
A42: Lose | B42: =HLOOKUP(B1,E39:AB46,5,FALSE) -> 0 | C42: =HLOOKUP(C1,E39:AB46,5,FALSE) -> 2 | E42: =+Table!E8 -> 1 | F42: =+Table!E30 -> 1 | G42: =+Table!E52 -> 1 | H42: =+Table!E74 -> 2 | I42: =+Table!E96 -> 1 | J42: =+Table!E118 -> 0 | K42: =+Table!E140 -> 2 | L42: =+Table!E162 -> 2 | M42: =+Table!E184 -> 2 | N42: =+Table!E206 -> 2 | O42: =+Table!E228 -> 1 | P42: =+Table!E250 -> 1 | Q42: =+Table!E272 -> 1 | R42: =+Table!E294 -> 3 | S42: =+Table!E316 -> 2 | T42: =+Table!E338 -> 1 | U42: =+Table!E360 -> 1 | V42: =+Table!E382 -> 1 | W42: =+Table!E404 -> 1 | X42: =+Table!E426 -> 1 | Y42: =+Table!E448 -> 0 | Z42: =+Table!E470 -> 0 | AA42: =+Table!E492 -> 0 | AB42: =+Table!E514 -> 0 | AD42: Lose | AE42: 0 | AF42: 2
A43: MediaG | B43: =HLOOKUP(B1,E39:AB46,6,FALSE) -> 0.5013888889 | C43: =HLOOKUP(C1,E39:AB46,6,FALSE) -> 0.2125 | E43: =+Table!E9 -> 0 | F43: =+Table!E31 -> 1 | G43: =+Table!E53 -> 1 | H43: =+Table!E75 -> 1 | I43: =+Table!E97 -> 2 | J43: =+Table!E119 -> 3 | K43: =+Table!E141 -> 2 | L43: =+Table!E163 -> 2 | M43: =+Table!E185 -> 2 | N43: =+Table!E207 -> 2 | O43: =+Table!E229 -> 3 | P43: =+Table!E251 -> 3 | Q43: =+Table!E273 -> 3 | R43: =+Table!E295 -> 2 | S43: =+Table!E317 -> 3 | T43: =+Table!E339 -> 4 | U43: =+Table!E361 -> 4 | V43: =+Table!E383 -> 4 | W43: =+Table!E405 -> 4 | X43: =+Table!E427 -> 4 | Y43: =+Table!E449 -> 0 | Z43: =+Table!E471 -> 0 | AA43: =+Table!E493 -> 0 | AB43: =+Table!E515 -> 0 | AD43: MediaG | AE43: 0.5013888889 | AF43: 0.2125
A44: Point | B44: =HLOOKUP(B1,E39:AB46,8,FALSE) -> 13 | C44: =HLOOKUP(C1,E39:AB46,8,FALSE) -> 5 | E44: =+Table!E10 -> 0.5013888889 | F44: =+Table!E32 -> 0.5479166667 | G44: =+Table!E54 -> 0.3361111111 | H44: =+Table!E76 -> 0.2111111111 | I44: =+Table!E98 -> 0.2965277778 | J44: =+Table!E120 -> 0.2138888889 | K44: =+Table!E142 -> 0.2125 | L44: =+Table!E164 -> 0.08611111111 | M44: =+Table!E186 -> 0.25625 | N44: =+Table!E208 -> 0.1305555556 | O44: =+Table!E230 -> 0.1708333333 | P44: =+Table!E252 -> 0.08819444444 | Q44: =+Table!E274 -> 0.13125 | R44: =+Table!E296 -> 0.1284722222 | S44: =+Table!E318 -> 0.175 | T44: =+Table!E340 -> 0.2569444444 | U44: =+Table!E362 -> 0.08819444444 | V44: =+Table!E384 -> 0.13125 | W44: =+Table!E406 -> 0.1743055556 | X44: =+Table!E428 -> 0.1763888889 | Y44: =+Table!E450 -> 0 | Z44: =+Table!E472 -> 0 | AA44: =+Table!E494 -> 0 | AB44: =+Table!E516 -> 0 | AD44: Point | AE44: 13 | AF44: 5
A45: Rendimento | B45: =HLOOKUP(B1,E39:AB46,8,FALSE) -> 13 | C45: =HLOOKUP(C1,E39:AB46,8,FALSE) -> 5 | E45: =+Table!E11 -> 10 | F45: =+Table!E33 -> 4 | G45: =+Table!E55 -> 4 | H45: =+Table!E77 -> 1 | I45: =+Table!E99 -> 0 | J45: =+Table!E121 -> -3 | K45: =+Table!E143 -> -1 | L45: =+Table!E165 -> -2 | M45: =+Table!E187 -> -3 | N45: =+Table!E209 -> -5 | O45: =+Table!E231 -> -2 | P45: =+Table!E253 -> -5 | Q45: =+Table!E275 -> -6 | R45: =+Table!E297 -> -2 | S45: =+Table!E319 -> -8 | T45: =+Table!E341 -> -4 | U45: =+Table!E363 -> -5 | V45: =+Table!E385 -> -6 | W45: =+Table!E407 -> -7 | X45: =+Table!E429 -> -10 | Y45: =+Table!E451 -> 0 | Z45: =+Table!E473 -> 0 | AA45: =+Table!E495 -> 0 | AB45: =+Table!E517 -> 0 | AD45: Rendimento | AE45: 13 | AF45: 5
E46: =+Table!E12 -> 13 | F46: =+Table!E34 -> 10 | G46: =+Table!E56 -> 10 | H46: =+Table!E78 -> 8 | I46: =+Table!E100 -> 7 | J46: =+Table!E122 -> 6 | K46: =+Table!E144 -> 5 | L46: =+Table!E166 -> 5 | M46: =+Table!E188 -> 5 | N46: =+Table!E210 -> 5 | O46: =+Table!E232 -> 4 | P46: =+Table!E254 -> 4 | Q46: =+Table!E276 -> 4 | R46: =+Table!E298 -> 3 | S46: =+Table!E320 -> 2 | T46: =+Table!E342 -> 1 | U46: =+Table!E364 -> 1 | V46: =+Table!E386 -> 1 | W46: =+Table!E408 -> 1 | X46: =+Table!E430 -> 1 | Y46: =+Table!E452 -> 0 | Z46: =+Table!E474 -> 0 | AA46: =+Table!E496 -> 0 | AB46: =+Table!E518 -> 0 | AD46: 0 | AE46: 0 | AF46: 0 | AH46: =+B51 -> - | AI46: =+C65 -> - | AK46: =IF(AH46="+",1,0) -> 0 | AL46: =IF(AI46="+",1,0) -> 0 | AN46: =(SUMIF(AK46:AL50,1))/10 -> 0.4 | AO46: =100%-AN46 -> 0.6
A47: Home Over/Under | AD47: Home Over/Under | AE47: 0 | AF47: 0 | AH47: =+B52 -> + | AI47: =+C66 -> - | AK47: =IF(AH47="+",1,0) -> 1 | AL47: =IF(AI47="+",1,0) -> 0
A48: Match | B48: =HLOOKUP(B1,E48:AB54,2,FALSE) -> 11 | C48: =HLOOKUP(C1,E48:AB54,2,FALSE) -> 12 | E48: =+Table!F5 -> Frosinone | F48: =+Table!F25 -> Salernitana | G48: =+Table!F45 -> Napoli | H48: =+Table!F65 -> Atalanta | I48: =+Table!F85 -> Cagliari | J48: =+Table!F105 -> Udinese | K48: =+Table!F125 -> Roma | L48: =+Table!F145 -> Inter | M48: =+Table!F165 -> Lecce | N48: =+Table!F185 -> Fiorentina | O48: =+Table!F205 -> Sassuolo | P48: =+Table!F225 -> Milan | Q48: =+Table!F245 -> Verona | R48: =+Table!F265 -> Genoa | S48: =+Table!F285 -> Bologna | T48: =+Table!F305 -> Empoli | U48: =+Table!F325 -> Torino | V48: =+Table!F345 -> Monza | W48: =+Table!F365 -> Juventus | X48: =+Table!F385 -> Lazio | Y48: =+Table!F405 -> 0 | Z48: =+Table!F425 -> 0 | AA48: =+Table!F445 -> 0 | AB48: =+Table!F465 -> 0 | AD48: Match | AE48: 11 | AF48: 12 | AH48: - | AI48: + | AK48: 0 | AL48: 1
A49: Over | B49: =HLOOKUP(B1,E48:AB54,3,FALSE) -> 6 | C49: =HLOOKUP(C1,E48:AB54,3,FALSE) -> 7 | E49: =+Table!F6 -> 12 | F49: =+Table!F26 -> 12 | G49: =+Table!F46 -> 11 | H49: =+Table!F66 -> 12 | I49: =+Table!F86 -> 11 | J49: =+Table!F106 -> 12 | K49: =+Table!F126 -> 11 | L49: =+Table!F146 -> 11 | M49: =+Table!F166 -> 12 | N49: =+Table!F186 -> 11 | O49: =+Table!F206 -> 10 | P49: =+Table!F226 -> 11 | Q49: =+Table!F246 -> 11 | R49: =+Table!F266 -> 11 | S49: =+Table!F286 -> 11 | T49: =+Table!F306 -> 12 | U49: =+Table!F326 -> 11 | V49: =+Table!F346 -> 11 | W49: =+Table!F366 -> 11 | X49: =+Table!F386 -> 11 | Y49: =+Table!F406 -> 0 | Z49: =+Table!F426 -> 0 | AA49: =+Table!F446 -> 0 | AB49: =+Table!F466 -> 0 | AD49: Over | AE49: 6 | AF49: 7 | AH49: + | AI49: - | AK49: 1 | AL49: 0
A50: Under | B50: =HLOOKUP(B1,E48:AB54,4,FALSE) -> 5 | C50: =HLOOKUP(C1,E48:AB54,4,FALSE) -> 5 | E50: =+Table!F7 -> 10 | F50: =+Table!F27 -> 9 | G50: =+Table!F47 -> 8 | H50: =+Table!F67 -> 7 | I50: =+Table!F87 -> 7 | J50: =+Table!F107 -> 7 | K50: =+Table!F127 -> 6 | L50: =+Table!F147 -> 6 | M50: =+Table!F167 -> 6 | N50: =+Table!F187 -> 6 | O50: =+Table!F207 -> 5 | P50: =+Table!F227 -> 5 | Q50: =+Table!F247 -> 5 | R50: =+Table!F267 -> 4 | S50: =+Table!F287 -> 4 | T50: =+Table!F307 -> 4 | U50: =+Table!F327 -> 4 | V50: =+Table!F347 -> 3 | W50: =+Table!F367 -> 3 | X50: =+Table!F387 -> 2 | Y50: =+Table!F407 -> 0 | Z50: =+Table!F427 -> 0 | AA50: =+Table!F447 -> 0 | AB50: =+Table!F467 -> 0 | AD50: Under | AE50: 5 | AF50: 5 | AH50: - | AI50: + | AK50: 0 | AL50: 1
A51: Rendimento | B51: =HLOOKUP(B1,E48:AB59,8,FALSE) -> - | C51: =HLOOKUP(C1,E48:AB59,8,FALSE) -> + | E51: =+Table!F8 -> 2 | F51: =+Table!F28 -> 3 | G51: =+Table!F48 -> 3 | H51: =+Table!F68 -> 5 | I51: =+Table!F88 -> 4 | J51: =+Table!F108 -> 5 | K51: =+Table!F128 -> 5 | L51: =+Table!F148 -> 5 | M51: =+Table!F168 -> 6 | N51: =+Table!F188 -> 5 | O51: =+Table!F208 -> 5 | P51: =+Table!F228 -> 6 | Q51: =+Table!F248 -> 6 | R51: =+Table!F268 -> 7 | S51: =+Table!F288 -> 7 | T51: =+Table!F308 -> 8 | U51: =+Table!F328 -> 7 | V51: =+Table!F348 -> 8 | W51: =+Table!F368 -> 8 | X51: =+Table!F388 -> 9 | Y51: =+Table!F408 -> 0 | Z51: =+Table!F428 -> 0 | AA51: =+Table!F448 -> 0 | AB51: =+Table!F468 -> 0 | AD51: Rendimento | AE51: - | AF51: +
B52: =HLOOKUP(B1,E48:AB59,9,FALSE) -> + | C52: =HLOOKUP(C1,E48:AB59,9,FALSE) -> - | E52: =+Table!F9 -> 0.9298611111 | F52: =+Table!F29 -> 0.5166666667 | G52: =+Table!F49 -> 0.6770833333 | H52: =+Table!F69 -> 1.130555556 | I52: =+Table!F89 -> 0.5958333333 | J52: =+Table!F109 -> 0.6381944444 | K52: =+Table!F129 -> 1.00625 | L52: =+Table!F149 -> 1.0875 | M52: =+Table!F169 -> 0.6368055556 | N52: =+Table!F189 -> 0.7159722222 | O52: =+Table!F209 -> 0.5520833333 | P52: =+Table!F229 -> 0.8381944444 | Q52: =+Table!F249 -> 0.5097222222 | R52: =+Table!F269 -> 0.5916666667 | S52: =+Table!F289 -> 0.7548611111 | T52: =+Table!F309 -> 0.3451388889 | U52: =+Table!F329 -> 0.5041666667 | V52: =+Table!F349 -> 0.5076388889 | W52: =+Table!F369 -> 0.7118055556 | X52: =+Table!F389 -> 0.5048611111 | Y52: =+Table!F409 -> 0 | Z52: =+Table!F429 -> 0 | AA52: =+Table!F449 -> 0 | AB52: =+Table!F469 -> 0 | AD52: =+A60 -> 0 | AE52: =+B60 -> 0 | AF52: =+C60 -> 0 | AH52: =IF(AH46="+","OVER","UNDER") -> UNDER | AI52: =IF(AI46="+","OVER","UNDER") -> UNDER
B53: =HLOOKUP(B1,E48:AB59,10,FALSE) -> - | C53: =HLOOKUP(C1,E48:AB59,10,FALSE) -> + | E53: =+Table!F10 -> 3.4 | F53: =+Table!F30 -> 3 | G53: =+Table!F50 -> 2.8 | H53: =+Table!F70 -> 2.9 | I53: =+Table!F90 -> 2.9 | J53: =+Table!F110 -> 2.8 | K53: =+Table!F130 -> 3 | L53: =+Table!F150 -> 2.9 | M53: =+Table!F170 -> 2.7 | N53: =+Table!F190 -> 2.5 | O53: =+Table!F210 -> 2.8 | P53: =+Table!F230 -> 2.5 | Q53: =+Table!F250 -> 2.4 | R53: =+Table!F270 -> 2.4 | S53: =+Table!F290 -> 2.3 | T53: =+Table!F310 -> 2.1 | U53: =+Table!F330 -> 1.6 | V53: =+Table!F350 -> 2.1 | W53: =+Table!F370 -> 2 | X53: =+Table!F390 -> 1.7 | Y53: =+Table!F410 -> 0 | Z53: =+Table!F430 -> 0 | AA53: =+Table!F450 -> 0 | AB53: =+Table!F470 -> 0 | AD53: =+#REF! ->  | AE53: =+#REF! ->  | AF53: =+#REF! ->  | AH53: =IF(AH47="+","OVER","UNDER") -> OVER | AI53: UNDER
B54: =HLOOKUP(B1,E48:AB59,11,FALSE) -> + | C54: =HLOOKUP(C1,E48:AB59,11,FALSE) -> - | E54: =+Table!F12 -> ? | F54: =+Table!F32 -> ? | G54: =+Table!F52 -> ? | H54: =+Table!F72 -> ? | I54: =+Table!F92 -> ? | J54: =+Table!F112 -> ? | K54: =+Table!F132 -> ? | L54: =+Table!F152 -> ? | M54: =+Table!F172 -> ? | N54: =+Table!F192 -> ? | O54: =+Table!F212 -> ? | P54: =+Table!F232 -> ? | Q54: =+Table!F252 -> ? | R54: =+Table!F272 -> ? | S54: =+Table!F292 -> ? | T54: =+Table!F312 -> ? | U54: =+Table!F332 -> ? | V54: =+Table!F352 -> ? | W54: =+Table!F372 -> ? | X54: =+Table!F392 -> ? | Y54: =+Table!F412 -> 0 | Z54: =+Table!F432 -> 0 | AA54: =+Table!F452 -> 0 | AB54: =+Table!F472 -> 0 | AD54: =+#REF! ->  | AE54: =+#REF! ->  | AF54: =+#REF! ->  | AH54: =IF(AH48="+","OVER","UNDER") -> UNDER | AI54: OVER
B55: =HLOOKUP(B1,E48:AB59,12,FALSE) -> - | C55: =HLOOKUP(C1,E48:AB59,12,FALSE) -> + | E55: =+Table!F14 -> + | F55: =+Table!F34 -> + | G55: =+Table!F54 -> + | H55: =+Table!F74 -> + | I55: =+Table!F94 -> + | J55: =+Table!F114 -> - | K55: =+Table!F134 -> + | L55: =+Table!F154 -> - | M55: =+Table!F174 -> + | N55: =+Table!F194 -> - | O55: =+Table!F214 -> - | P55: =+Table!F234 -> + | Q55: =+Table!F254 -> - | R55: =+Table!F274 -> + | S55: =+Table!F294 -> + | T55: =+Table!F314 -> - | U55: =+Table!F334 -> - | V55: =+Table!F354 -> - | W55: =+Table!F374 -> - | X55: =+Table!F394 -> - | Y55: =+Table!F414 -> 0 | Z55: =+Table!F434 -> 0 | AA55: =+Table!F454 -> 0 | AB55: =+Table!F474 -> 0 | AD55: =+A61 -> Away Over/Under | AE55: 0 | AF55: 0 | AH55: =IF(AH49="+","OVER","UNDER") -> OVER | AI55: UNDER
E56: =+Table!F16 -> + | F56: =+Table!F36 -> + | G56: =+Table!F56 -> + | H56: =+Table!F76 -> - | I56: =+Table!F96 -> + | J56: =+Table!F116 -> + | K56: =+Table!F136 -> - | L56: =+Table!F156 -> + | M56: =+Table!F176 -> + | N56: =+Table!F196 -> + | O56: =+Table!F216 -> + | P56: =+Table!F236 -> + | Q56: =+Table!F256 -> + | R56: =+Table!F276 -> - | S56: =+Table!F296 -> - | T56: =+Table!F316 -> + | U56: =+Table!F336 -> + | V56: =+Table!F356 -> + | W56: =+Table!F376 -> + | X56: =+Table!F396 -> - | Y56: =+Table!F416 -> 0 | Z56: =+Table!F436 -> 0 | AA56: =+Table!F456 -> 0 | AB56: =+Table!F476 -> 0 | AD56: Match | AE56: 11 | AF56: 10 | AH56: =IF(AH50="+","OVER","UNDER") -> UNDER | AI56: OVER
E57: =+Table!F18 -> + | F57: =+Table!F38 -> + | G57: =+Table!F58 -> - | H57: =+Table!F78 -> + | I57: =+Table!F98 -> - | J57: =+Table!F118 -> + | K57: =+Table!F138 -> - | L57: =+Table!F158 -> - | M57: =+Table!F178 -> - | N57: =+Table!F198 -> - | O57: =+Table!F218 -> + | P57: =+Table!F238 -> - | Q57: =+Table!F258 -> - | R57: =+Table!F278 -> - | S57: =+Table!F296 -> - | T57: =+Table!F318 -> + | U57: =+Table!F338 -> - | V57: =+Table!F358 -> - | W57: =+Table!F378 -> - | X57: =+Table!F398 -> + | Y57: =+Table!F418 -> 0 | Z57: =+Table!F438 -> 0 | AA57: =+Table!F458 -> 0 | AB57: =+Table!F478 -> 0 | AD57: Over | AE57: 5 | AF57: 5
E58: =+Table!F20 -> + | F58: =+Table!F40 -> + | G58: =+Table!F60 -> + | H58: =+Table!F80 -> - | I58: =+Table!F100 -> + | J58: =+Table!F120 -> + | K58: =+Table!F140 -> - | L58: =+Table!F160 -> + | M58: =+Table!F180 -> + | N58: =+Table!F200 -> - | O58: =+Table!F220 -> + | P58: =+Table!F240 -> + | Q58: =+Table!F260 -> - | R58: =+Table!F280 -> - | S58: =+Table!F298 -> - | T58: =+Table!F320 -> - | U58: =+Table!F340 -> - | V58: =+Table!F360 -> - | W58: =+Table!F380 -> - | X58: =+Table!F400 -> - | Y58: =+Table!F420 -> 0 | Z58: =+Table!F440 -> 0 | AA58: =+Table!F460 -> 0 | AB58: =+Table!F480 -> 0 | AD58: Under | AE58: 6 | AF58: 5
E59: =+Table!F22 -> - | F59: =+Table!F42 -> + | G59: =+Table!F62 -> + | H59: =+Table!F82 -> + | I59: =+Table!F102 -> - | J59: =+Table!F122 -> + | K59: =+Table!F142 -> + | L59: =+Table!F162 -> - | M59: =+Table!F182 -> - | N59: =+Table!F202 -> + | O59: =+Table!F222 -> - | P59: =+Table!F242 -> + | Q59: =+Table!F262 -> - | R59: =+Table!F282 -> - | S59: =+Table!F300 -> - | T59: =+Table!F322 -> - | U59: =+Table!F342 -> + | V59: =+Table!F362 -> + | W59: =+Table!F382 -> - | X59: =+Table!F402 -> - | Y59: =+Table!F422 -> 0 | Z59: =+Table!F442 -> 0 | AA59: =+Table!F462 -> 0 | AB59: =+Table!F482 -> 0 | AD59: Rendimento | AE59: - | AF59: -
E60: 5 | F60: =20+E60 -> 25 | G60: =20+F60 -> 45 | H60: 65 | I60: 85 | J60: 105 | K60: 125 | L60: 145 | M60: 165 | N60: 185 | O60: 205 | P60: 225 | Q60: 245 | R60: 265 | S60: 285 | T60: 305 | U60: 325 | V60: 345 | W60: 365 | X60: 385 | Y60: 405 | Z60: 425 | AA60: 445 | AB60: 465 | AD60: 0 | AE60: + | AF60: -
A61: Away Over/Under | E61: 12 | F61: =20+E61 -> 32 | G61: =20+F61 -> 52 | H61: 72 | I61: 92 | J61: 112 | K61: 132 | L61: 152 | M61: 172 | N61: 192 | O61: 212 | P61: 232 | Q61: 252 | R61: 272 | S61: 292 | T61: 312 | U61: 332 | V61: 352 | W61: 372 | X61: 392 | Y61: 412 | Z61: 432 | AA61: 452 | AB61: 472 | AD61: 0 | AE61: - | AF61: +
A62: Match | B62: =HLOOKUP(B1,E62:AB73,2,FALSE) -> 11 | C62: =HLOOKUP(C1,E62:AB73,2,FALSE) -> 10 | E62: =+Table!G5 -> Milan | F62: =+Table!G25 -> Sassuolo | G62: =+Table!G45 -> Frosinone | H62: =+Table!G65 -> Roma | I62: =+Table!G85 -> Lazio | J62: =+Table!G105 -> Napoli | K62: =+Table!G125 -> Salernitana | L62: =+Table!G145 -> Cagliari | M62: =+Table!G165 -> Bologna | N62: =+Table!G185 -> Juventus | O62: =+Table!G205 -> Verona | P62: =+Table!G225 -> Atalanta | Q62: =+Table!G245 -> Inter | R62: =+Table!G265 -> Monza | S62: =+Table!G285 -> Genoa | T62: =+Table!G305 -> Fiorentina | U62: =+Table!G325 -> Udinese | V62: =+Table!G345 -> Empoli | W62: =+Table!G365 -> Lecce | X62: =+Table!G385 -> Torino | Y62: =+Table!G405 -> 0 | Z62: =+Table!G425 -> 0 | AA62: =+Table!G445 -> 0 | AB62: =+Table!G465 -> 0 | AD62: 0 | AE62: - | AF62: -
A63: Over | B63: =HLOOKUP(B1,E62:AB73,3,FALSE) -> 5 | C63: =HLOOKUP(C1,E62:AB73,3,FALSE) -> 5 | E63: =+Table!G6 -> 12 | F63: =+Table!G26 -> 12 | G63: =+Table!G46 -> 11 | H63: =+Table!G66 -> 11 | I63: =+Table!G86 -> 11 | J63: =+Table!G106 -> 11 | K63: =+Table!G126 -> 11 | L63: =+Table!G146 -> 11 | M63: =+Table!G166 -> 11 | N63: =+Table!G186 -> 12 | O63: =+Table!G206 -> 12 | P63: =+Table!G226 -> 10 | Q63: =+Table!G246 -> 11 | R63: =+Table!G266 -> 12 | S63: =+Table!G286 -> 12 | T63: =+Table!G306 -> 11 | U63: =+Table!G326 -> 11 | V63: =+Table!G346 -> 11 | W63: =+Table!G366 -> 11 | X63: =+Table!G386 -> 11 | Y63: =+Table!G406 -> 0 | Z63: =+Table!G426 -> 0 | AA63: =+Table!G446 -> 0 | AB63: =+Table!G466 -> 0
A64: Under | B64: =HLOOKUP(B1,E62:AB73,4,FALSE) -> 6 | C64: =HLOOKUP(C1,E62:AB73,4,FALSE) -> 5 | E64: =+Table!G7 -> 10 | F64: =+Table!G27 -> 8 | G64: =+Table!G47 -> 6 | H64: =+Table!G67 -> 6 | I64: =+Table!G87 -> 6 | J64: =+Table!G107 -> 6 | K64: =+Table!G127 -> 6 | L64: =+Table!G147 -> 6 | M64: =+Table!G167 -> 6 | N64: =+Table!G187 -> 6 | O64: =+Table!G207 -> 6 | P64: =+Table!G227 -> 5 | Q64: =+Table!G247 -> 5 | R64: =+Table!G267 -> 5 | S64: =+Table!G287 -> 5 | T64: =+Table!G307 -> 4 | U64: =+Table!G327 -> 4 | V64: =+Table!G347 -> 4 | W64: =+Table!G367 -> 4 | X64: =+Table!G387 -> 3 | Y64: =+Table!G407 -> 0 | Z64: =+Table!G427 -> 0 | AA64: =+Table!G447 -> 0 | AB64: =+Table!G467 -> 0
A65: Rendimento | B65: =HLOOKUP(B1,E62:AB73,8,FALSE) -> - | C65: =HLOOKUP(C1,E62:AB73,8,FALSE) -> - | E65: =+Table!G8 -> 2 | F65: =+Table!G28 -> 4 | G65: =+Table!G48 -> 5 | H65: =+Table!G68 -> 5 | I65: =+Table!G88 -> 5 | J65: =+Table!G108 -> 5 | K65: =+Table!G128 -> 5 | L65: =+Table!G148 -> 5 | M65: =+Table!G168 -> 5 | N65: =+Table!G188 -> 6 | O65: =+Table!G208 -> 6 | P65: =+Table!G228 -> 5 | Q65: =+Table!G248 -> 6 | R65: =+Table!G268 -> 7 | S65: =+Table!G288 -> 7 | T65: =+Table!G308 -> 7 | U65: =+Table!G328 -> 7 | V65: =+Table!G348 -> 7 | W65: =+Table!G368 -> 7 | X65: =+Table!G388 -> 8 | Y65: =+Table!G408 -> 0 | Z65: =+Table!G428 -> 0 | AA65: =+Table!G448 -> 0 | AB65: =+Table!G468 -> 0
B66: =HLOOKUP(B1,E62:AB73,9,FALSE) -> + | C66: =HLOOKUP(C1,E62:AB73,9,FALSE) -> - | E66: =+Table!G9 -> 1.097222222 | F66: =+Table!G29 -> 0.6430555556 | G66: =+Table!G49 -> 0.3923611111 | H66: =+Table!G69 -> 12:17:00 | I66: =+Table!G89 -> 0.5527777778 | J66: =+Table!G109 -> 0.6743055556 | K66: =+Table!G129 -> 0.3055555556 | L66: =+Table!G149 -> 0.3055555556 | M66: =+Table!G169 -> 0.46875 | N66: =+Table!G189 -> 0.7979166667 | O66: =+Table!G209 -> 09:18:00 | P66: =+Table!G229 -> 0.5513888889 | Q66: =+Table!G249 -> 1.044444444 | R66: =+Table!G269 -> 0.3868055556 | S66: =+Table!G289 -> 0.4263888889 | T66: =+Table!G309 -> 0.5930555556 | U66: =+Table!G329 -> 0.3458333333 | V66: =+Table!G349 -> 0.3048611111 | W66: =+Table!G369 -> 0.3861111111 | X66: =+Table!G389 -> 0.3423611111 | Y66: =+Table!G409 -> 0 | Z66: =+Table!G429 -> 0 | AA66: =+Table!G449 -> 0 | AB66: =+Table!G469 -> 0
B67: =HLOOKUP(B1,E62:AB73,10,FALSE) -> - | C67: =HLOOKUP(C1,E62:AB73,10,FALSE) -> + | E67: =+Table!G10 -> 3.8 | F67: =+Table!G30 -> 3.4 | G67: =+Table!G50 -> 3.1 | H67: =+Table!G70 -> 2.6 | I67: =+Table!G90 -> 2.6 | J67: =+Table!G110 -> 2.5 | K67: =+Table!G130 -> 2.5 | L67: =+Table!G150 -> 2.5 | M67: =+Table!G170 -> 2.4 | N67: =+Table!G190 -> 2.3 | O67: =+Table!G210 -> 2.3 | P67: =+Table!G230 -> 2.7 | Q67: =+Table!G250 -> 2.6 | R67: =+Table!G270 -> 2.2 | S67: =+Table!G290 -> 2 | T67: =+Table!G310 -> 2.5 | U67: =+Table!G330 -> 2.4 | V67: =+Table!G350 -> 2.4 | W67: =+Table!G370 -> 2.3 | X67: =+Table!G390 -> 1.9 | Y67: =+Table!G410 -> 0 | Z67: =+Table!G430 -> 0 | AA67: =+Table!G450 -> 0 | AB67: =+Table!G470 -> 0
B68: =HLOOKUP(B1,E62:AB73,11,FALSE) -> - | C68: =HLOOKUP(C1,E62:AB73,11,FALSE) -> - | E68: =+Table!G12 -> ? | F68: =+Table!G32 -> ? | G68: =+Table!G52 -> ? | H68: =+Table!G72 -> ? | I68: =+Table!G92 -> ? | J68: =+Table!G112 -> ? | K68: =+Table!G132 -> ? | L68: =+Table!G152 -> ? | M68: =+Table!G172 -> ? | N68: =+Table!G192 -> ? | O68: =+Table!G212 -> ? | P68: =+Table!G232 -> ? | Q68: =+Table!G252 -> ? | R68: =+Table!G272 -> ? | S68: =+Table!G292 -> ? | T68: =+Table!G312 -> ? | U68: =+Table!G332 -> ? | V68: =+Table!G352 -> ? | W68: =+Table!G372 -> ? | X68: =+Table!G392 -> ? | Y68: =+Table!G412 -> 0 | Z68: =+Table!G432 -> 0 | AA68: =+Table!G452 -> 0 | AB68: =+Table!G472 -> 0
B69: =HLOOKUP(B1,E62:AB73,12,FALSE) -> + | C69: =HLOOKUP(C1,E62:AB73,12,FALSE) -> + | E69: =+Table!G14 -> + | F69: =+Table!G34 -> + | G69: =+Table!G54 -> - | H69: =+Table!G74 -> + | I69: =+Table!G94 -> + | J69: =+Table!G114 -> - | K69: =+Table!G134 -> - | L69: =+Table!G154 -> + | M69: =+Table!G174 -> + | N69: =+Table!G194 -> - | O69: =+Table!G214 -> + | P69: =+Table!G234 -> - | Q69: =+Table!G254 -> - | R69: =+Table!G274 -> - | S69: =+Table!G294 -> - | T69: =+Table!G314 -> + | U69: =+Table!G334 -> - | V69: =+Table!G354 -> - | W69: =+Table!G374 -> + | X69: =+Table!G394 -> + | Y69: =+Table!G414 -> 0 | Z69: =+Table!G434 -> 0 | AA69: =+Table!G454 -> 0 | AB69: =+Table!G474 -> 0
E70: =+Table!G16 -> + | F70: =+Table!G36 -> - | G70: =+Table!G56 -> + | H70: =+Table!G76 -> + | I70: =+Table!G96 -> + | J70: =+Table!G116 -> + | K70: =+Table!G136 -> + | L70: =+Table!G156 -> - | M70: =+Table!G176 -> + | N70: =+Table!G196 -> + | O70: =+Table!G216 -> + | P70: =+Table!G236 -> - | Q70: =+Table!G256 -> + | R70: =+Table!G276 -> + | S70: =+Table!G296 -> + | T70: =+Table!G316 -> - | U70: =+Table!G336 -> + | V70: =+Table!G356 -> + | W70: =+Table!G376 -> - | X70: =+Table!G396 -> - | Y70: =+Table!G416 -> 0 | Z70: =+Table!G436 -> 0 | AA70: =+Table!G456 -> 0 | AB70: =+Table!G476 -> 0
E71: =+Table!G18 -> + | F71: =+Table!G38 -> + | G71: =+Table!G58 -> + | H71: =+Table!G78 -> - | I71: =+Table!G98 -> - | J71: =+Table!G118 -> - | K71: =+Table!G138 -> - | L71: =+Table!G158 -> - | M71: =+Table!G178 -> + | N71: =+Table!G198 -> + | O71: =+Table!G218 -> + | P71: =+Table!G238 -> + | Q71: =+Table!G258 -> - | R71: =+Table!G278 -> + | S71: =+Table!G298 -> - | T71: =+Table!G318 -> - | U71: =+Table!G338 -> - | V71: =+Table!G358 -> - | W71: =+Table!G378 -> - | X71: =+Table!G398 -> - | Y71: =+Table!G418 -> 0 | Z71: =+Table!G438 -> 0 | AA71: =+Table!G458 -> 0 | AB71: =+Table!G478 -> 0
E72: =+Table!G20 -> + | F72: =+Table!G40 -> - | G72: =+Table!G60 -> + | H72: =+Table!G80 -> - | I72: =+Table!G100 -> - | J72: =+Table!G120 -> - | K72: =+Table!G140 -> + | L72: =+Table!G160 -> + | M72: =+Table!G180 -> + | N72: =+Table!G200 -> + | O72: =+Table!G220 -> - | P72: =+Table!G240 -> - | Q72: =+Table!G260 -> - | R72: =+Table!G280 -> - | S72: =+Table!G300 -> + | T72: =+Table!G320 -> - | U72: =+Table!G340 -> + | V72: =+Table!G360 -> - | W72: =+Table!G380 -> - | X72: =+Table!G400 -> - | Y72: =+Table!G420 -> 0 | Z72: =+Table!G440 -> 0 | AA72: =+Table!G460 -> 0 | AB72: =+Table!G480 -> 0
E73: =+Table!G22 -> + | F73: =+Table!G42 -> + | G73: =+Table!G62 -> + | H73: =+Table!G82 -> + | I73: =+Table!G102 -> + | J73: =+Table!G122 -> + | K73: =+Table!G142 -> + | L73: =+Table!G162 -> - | M73: =+Table!G182 -> - | N73: =+Table!G202 -> - | O73: =+Table!G222 -> + | P73: =+Table!G242 -> + | Q73: =+Table!G262 -> + | R73: =+Table!G282 -> + | S73: =+Table!G302 -> - | T73: =+Table!G322 -> - | U73: =+Table!G342 -> + | V73: =+Table!G362 -> - | W73: =+Table!G382 -> - | X73: =+Table!G402 -> - | Y73: =+Table!G422 -> 0 | Z73: =+Table!G442 -> 0 | AA73: =+Table!G462 -> 0 | AB73: =+Table!G482 -> 0
A76: Forma x Grafico Home | E76: =+Table!B5 -> Inter | F76: =+Table!B27 -> Atalanta | G76: =+Table!B49 -> Juventus | H76: =+Table!B71 -> Bologna | I76: =+Table!B93 -> Milan | J76: =+Table!B115 -> Roma | K76: =+Table!B137 -> Lazio | L76: =+Table!B159 -> Fiorentina | M76: =+Table!B181 -> Torino | N76: =+Table!B203 -> Frosinone | O76: =+Table!B225 -> Lecce | P76: =+Table!B247 -> Genoa | Q76: =+Table!B269 -> Napoli | R76: =+Table!B291 -> Monza | S76: =+Table!B313 -> Cagliari | T76: =+Table!B335 -> Verona | U76: =+Table!B357 -> Sassuolo | V76: =+Table!B379 -> Udinese | W76: =+Table!B401 -> Empoli | X76: =+Table!B423 -> Salernitana | Y76: =+Table!B445 -> 0 | Z76: =+Table!B467 -> 0 | AA76: =+Table!B489 -> 0 | AB76: =+Table!B511 -> 0
A77: 1 | B77: =HLOOKUP(B1,E76:AB81,2,FALSE) -> V | C77: =HLOOKUP(C1,E76:AC81,2,FALSE) -> V | E77: =+Table!B16 -> V | F77: =+Table!B38 -> V | G77: =+Table!B60 -> N | H77: =+Table!B82 -> V | I77: =+Table!B104 -> N | J77: =+Table!B126 -> V | K77: =+Table!B148 -> N | L77: =+Table!B170 -> P | M77: =+Table!B192 -> N | N77: =+Table!B214 -> P | O77: =+Table!B236 -> V | P77: =+Table!B258 -> V | Q77: =+Table!B280 -> V | R77: =+Table!B302 -> V | S77: =+Table!B324 -> P | T77: =+Table!B346 -> N | U77: =+Table!B368 -> V | V77: =+Table!B390 -> N | W77: =+Table!B412 -> N | X77: =+Table!B434 -> P | Y77: =+Table!B456 -> 0 | Z77: =+Table!B478 -> 0 | AA77: =+Table!B500 -> 0 | AB77: =+Table!B522 -> 0
A78: 2 | B78: =HLOOKUP(B1,E76:AB81,3,FALSE) -> V | C78: =HLOOKUP(C1,E76:AC81,3,FALSE) -> V | E78: =+Table!B18 -> V | F78: =+Table!B40 -> V | G78: =+Table!B62 -> V | H78: =+Table!B84 -> N | I78: =+Table!B106 -> V | J78: =+Table!B128 -> N | K78: =+Table!B150 -> V | L78: =+Table!B172 -> N | M78: =+Table!B194 -> V | N78: =+Table!B216 -> V | O78: =+Table!B238 -> P | P78: =+Table!B260 -> N | Q78: =+Table!B282 -> V | R78: =+Table!B304 -> P | S78: =+Table!B326 -> V | T78: =+Table!B348 -> V | U78: =+Table!B370 -> P | V78: =+Table!B392 -> P | W78: =+Table!B414 -> V | X78: =+Table!B436 -> P | Y78: =+Table!B458 -> 0 | Z78: =+Table!B480 -> 0 | AA78: =+Table!B502 -> 0 | AB78: =+Table!B524 -> 0
A79: 3 | B79: =HLOOKUP(B1,E76:AB81,4,FALSE) -> V | C79: =HLOOKUP(C1,E76:AC81,4,FALSE) -> V | E79: =+Table!B20 -> V | F79: =+Table!B42 -> V | G79: =+Table!B64 -> V | H79: =+Table!B86 -> V | I79: =+Table!B108 -> V | J79: =+Table!B130 -> V | K79: =+Table!B152 -> V | L79: =+Table!B174 -> V | M79: =+Table!B196 -> N | N79: =+Table!B218 -> P | O79: =+Table!B240 -> N | P79: =+Table!B262 -> N | Q79: =+Table!B284 -> N | R79: =+Table!B306 -> P | S79: =+Table!B328 -> N | T79: =+Table!B350 -> P | U79: =+Table!B372 -> P | V79: =+Table!B394 -> P | W79: =+Table!B416 -> P | X79: =+Table!B438 -> P | Y79: =+Table!B460 -> 0 | Z79: =+Table!B482 -> 0 | AA79: =+Table!B504 -> 0 | AB79: =+Table!B526 -> 0
A80: 4 | B80: =HLOOKUP(B1,E76:AB81,5,FALSE) -> V | C80: =HLOOKUP(C1,E76:AC81,5,FALSE) -> V | E80: =+Table!B22 -> V | F80: =+Table!B44 -> V | G80: =+Table!B66 -> V | H80: =+Table!B88 -> V | I80: =+Table!B110 -> V | J80: =+Table!B132 -> N | K80: =+Table!B154 -> P | L80: =+Table!B176 -> V | M80: =+Table!B198 -> V | N80: =+Table!B220 -> P | O80: =+Table!B242 -> V | P80: =+Table!B264 -> N | Q80: =+Table!B286 -> V | R80: =+Table!B308 -> V | S80: =+Table!B330 -> V | T80: =+Table!B352 -> V | U80: =+Table!B374 -> N | V80: =+Table!B396 -> V | W80: =+Table!B418 -> P | X80: =+Table!B440 -> N | Y80: =+Table!B462 -> 0 | Z80: =+Table!B484 -> 0 | AA80: =+Table!B506 -> 0 | AB80: =+Table!B528 -> 0
A81: 5 | B81: =HLOOKUP(B1,E76:AB81,6,FALSE) -> V | C81: =HLOOKUP(C1,E76:AC81,6,FALSE) -> V | E81: =+Table!B24 -> V | F81: =+Table!B46 -> V | G81: =+Table!B68 -> N | H81: =+Table!B90 -> V | I81: =+Table!B112 -> V | J81: =+Table!B134 -> V | K81: =+Table!B156 -> V | L81: =+Table!B178 -> V | M81: =+Table!B200 -> V | N81: =+Table!B222 -> N | O81: =+Table!B244 -> N | P81: =+Table!B266 -> N | Q81: =+Table!B288 -> P | R81: =+Table!B310 -> P | S81: =+Table!B332 -> N | T81: =+Table!B354 -> N | U81: =+Table!B376 -> N | V81: =+Table!B398 -> N | W81: =+Table!B420 -> N | X81: =+Table!B442 -> P | Y81: =+Table!B464 -> 0 | Z81: =+Table!B486 -> 0 | AA81: =+Table!B508 -> 0 | AB81: =+Table!B530 -> 0
A85: Forma x Grafico Away | E85: =+Table!C4 -> Inter | F85: =+Table!C27 -> Juventus | G85: =+Table!C49 -> Milan | H85: =+Table!C71 -> Napoli | I85: =+Table!C93 -> Fiorentina | J85: =+Table!C115 -> Lazio | K85: =+Table!C137 -> Monza | L85: =+Table!C159 -> Torino | M85: =+Table!C181 -> Genoa | N85: =+Table!C203 -> Atalanta | O85: =+Table!C225 -> Roma | P85: =+Table!C247 -> Bologna | Q85: =+Table!C269 -> Udinese | R85: =+Table!C291 -> Empoli | S85: =+Table!C313 -> Sassuolo | T85: =+Table!C335 -> Salernitana | U85: =+Table!C357 -> Lecce | V85: =+Table!C379 -> Verona | W85: =+Table!C401 -> Cagliari | X85: =+Table!C423 -> Frosinone | Y85: =+Table!C445 -> 0 | Z85: =+Table!C467 -> 0 | AA85: =+Table!C489 -> 0 | AB85: =+Table!C511 -> 0
A86: 1 | B86: =HLOOKUP(B1,E85:AB90,2,FALSE) -> V | C86: =HLOOKUP(C1,E85:AB90,2,FALSE) -> N | E86: =+Table!C16 -> V | F86: =+Table!C38 -> P | G86: =+Table!C60 -> V | H86: =+Table!C82 -> N | I86: =+Table!C104 -> P | J86: =+Table!C126 -> P | K86: =+Table!C148 -> N | L86: =+Table!C170 -> V | M86: =+Table!C192 -> N | N86: =+Table!C214 -> N | O86: =+Table!C236 -> V | P86: =+Table!C258 -> N | Q86: =+Table!C280 -> P | R86: =+Table!C302 -> N | S86: =+Table!C324 -> P | T86: =+Table!C346 -> N | U86: =+Table!C368 -> P | V86: =+Table!C390 -> P | W86: =+Table!C412 -> P | X86: =+Table!C434 -> N | Y86: =+Table!C456 -> 0 | Z86: =+Table!C478 -> 0 | AA86: =+Table!C500 -> 0 | AB86: =+Table!C522 -> 0
A87: 2 | B87: =HLOOKUP(B1,E85:AB90,3,FALSE) -> V | C87: =HLOOKUP(C1,E85:AB90,3,FALSE) -> P | E87: =+Table!C18 -> V | F87: =+Table!C40 -> V | G87: =+Table!C62 -> V | H87: =+Table!C84 -> P | I87: =+Table!C106 -> P | J87: =+Table!C128 -> V | K87: =+Table!C150 -> P | L87: =+Table!C172 -> N | M87: =+Table!C194 -> V | N87: =+Table!C216 -> P | O87: =+Table!C238 -> P | P87: =+Table!C260 -> P | Q87: =+Table!C282 -> N | R87: =+Table!C304 -> P | S87: =+Table!C326 -> P | T87: =+Table!C348 -> P | U87: =+Table!C370 -> P | V87: =+Table!C392 -> P | W87: =+Table!C414 -> N | X87: =+Table!C436 -> P | Y87: =+Table!C458 -> 0 | Z87: =+Table!C480 -> 0 | AA87: =+Table!C502 -> 0 | AB87: =+Table!C524 -> 0
A88: 3 | B88: =HLOOKUP(B1,E85:AB90,4,FALSE) -> N | C88: =HLOOKUP(C1,E85:AB90,4,FALSE) -> P | E88: =+Table!C20 -> N | F88: =+Table!C42 -> V | G88: =+Table!C64 -> V | H88: =+Table!C86 -> P | I88: =+Table!C108 -> V | J88: =+Table!C130 -> V | K88: =+Table!C152 -> V | L88: =+Table!C174 -> P | M88: =+Table!C196 -> N | N88: =+Table!C218 -> P | O88: =+Table!C240 -> P | P88: =+Table!C262 -> P | Q88: =+Table!C284 -> N | R88: =+Table!C306 -> N | S88: =+Table!C328 -> P | T88: =+Table!C350 -> V | U88: =+Table!C372 -> P | V88: =+Table!C394 -> P | W88: =+Table!C416 -> P | X88: =+Table!C438 -> P | Y88: =+Table!C460 -> 0 | Z88: =+Table!C482 -> 0 | AA88: =+Table!C504 -> 0 | AB88: =+Table!C526 -> 0
A89: 4 | B89: =HLOOKUP(B1,E85:AB90,5,FALSE) -> V | C89: =HLOOKUP(C1,E85:AB90,5,FALSE) -> N | E89: =+Table!C22 -> V | F89: =+Table!C44 -> V | G89: =+Table!C66 -> N | H89: =+Table!C88 -> P | I89: =+Table!C110 -> N | J89: =+Table!C132 -> N | K89: =+Table!C154 -> N | L89: =+Table!C176 -> N | M89: =+Table!C198 -> V | N89: =+Table!C220 -> N | O89: =+Table!C242 -> P | P89: =+Table!C264 -> V | Q89: =+Table!C286 -> P | R89: =+Table!C308 -> P | S89: =+Table!C330 -> P | T89: =+Table!C352 -> P | U89: =+Table!C374 -> P | V89: =+Table!C396 -> P | W89: =+Table!C418 -> P | X89: =+Table!C440 -> P | Y89: =+Table!C462 -> 0 | Z89: =+Table!C484 -> 0 | AA89: =+Table!C506 -> 0 | AB89: =+Table!C528 -> 0
A90: 5 | B90: =HLOOKUP(B1,E85:AB90,6,FALSE) -> V | C90: =HLOOKUP(C1,E85:AB90,6,FALSE) -> V | E90: =+Table!C24 -> V | F90: =+Table!C46 -> N | G90: =+Table!C68 -> P | H90: =+Table!C90 -> V | I90: =+Table!C112 -> P | J90: =+Table!C134 -> P | K90: =+Table!C156 -> P | L90: =+Table!C178 -> P | M90: =+Table!C200 -> P | N90: =+Table!C222 -> V | O90: =+Table!C244 -> V | P90: =+Table!C266 -> N | Q90: =+Table!C288 -> P | R90: =+Table!C310 -> N | S90: =+Table!C332 -> N | T90: =+Table!C354 -> P | U90: =+Table!C376 -> N | V90: =+Table!C398 -> N | W90: =+Table!C420 -> P | X90: =+Table!C442 -> P | Y90: =+Table!C464 -> 0 | Z90: =+Table!C486 -> 0 | AA90: =+Table!C508 -> 0 | AB90: =+Table!C530 -> 0
